Cogmind - Beta 16 @@@ ROGUE MODE // 2025.11.09 @ 22:29:26 Player: Cogchaaaan Result: Establishing 0b11! Performance ------------- Evolutions (9) 4500 Regions Visited (29) 5800 Robots Destroyed (296) 1480 Value Destroyed (15051) 15051 Prototype IDs (369) 7380 Alien Tech Used (8) 1600 Bonus (52267) 52267 TOTAL SCORE: 88078 Bonus ------- High Alert Combat Kills 924 Follower Combat Kills 931 Forged Quantum Companion 2000 Network Hubs Disabled 200 Registered with UFD 300 Met Optimus in HQ 500 Met Zhirov 300 Met Warlord at Base 500 MAIN.C Attacked Warlord 500 Scanned by Researcher 500 Met Optimus at Protoforge 1000 Recovered Sigix Corpse 2000 Destroyed MAIN.C Guards 500 Met MAIN.C 5000 Destroyed MAIN.C Shell 5000 Destroyed MAIN.C 10000 Met Architect 300 Started Test 138-B 500 Destroyed A6 400 Destroyed A5 500 Destroyed A4 700 Destroyed A3 800 Destroyed A2 1000 Destroyed Architect 15000 Win 3000 Friendly Fire -88 Cogmind --------- Core Integrity 227/1600 Matter 280/300 Energy 709/730 System Corruption 1% Temperature Cool (10) Movement Hovering (20) Location 0b11 Command Parts ------- > --- POWER (3) -------- Graviton Reactor Improved Quantum Reactor Zero-point Reactor > --- PROPULSION (8) --- Cooled Antigrav System Cooled Linear Gravjet Cooled Linear Gravjet Cooled Linear Gravjet Combat Linear Gravjet Concept Combat Aerolev Unit Concept Combat Aerolev Unit Concept Gyrokinetic System > --- UTILITY (12) ----- Concept Antigrav Storage Unit Advanced Quantum Shading Machine ST Field Compressor Spectral Analyzer Concept Weapon Articulator Experimental Core Analyzer Experimental Core Analyzer Experimental Armor Integrity Analyzer Femtoactuators Concept Phase Shift Module Heavy Regenerative Plating > --- WEAPON (3) ------- Centrium Greatsword Superquantum Companion > --- INVENTORY (25) --- Improved Quantum Reactor Cooled Antigrav System Cooled Antigrav System Combat Linear Gravjet Concept Phasing Heat Sink Advanced Energy Well (500) Concept Weapon Articulator Experimental Powered Armor Graphene Brace Experimental Focal Shield Concept Beam Splitter Concept Beam Splitter High-powered Transdimensional Reconstructor Concept Plasma Driver Hypervelocity Multirail A3's Sniper Rifle Concept EMP Blanket Launcher Concept Rapid Grenade Launcher Experimental Jetlance Sigix Corpse Peak State ------------ > --- POWER ------------ Concept Zero-point Core Concept Zero-point Core Concept Zero-point Core > --- PROPULSION ------- Experimental Antigrav System Experimental Antigrav System Experimental Antigrav System Experimental Antigrav System Experimental Antigrav System Concept Combat Aerolev Unit Concept Combat Aerolev Unit Concept Gyrokinetic System > --- UTILITY ---------- Concept Phasing Heat Sink Concept Antigrav Storage Unit Experimental Optical Array Concept Weapon Articulator Experimental Core Analyzer Experimental Armor Integrity Analyzer Concept Reaction Jets Concept Cloak Mesh Concept Cloak Mesh Concept Energy Mantle Concept Network Penetrator > --- WEAPON ----------- Superquantum Companion Sigix Broadsword > --- INVENTORY -------- Experimental Antimatter Reactor Gravjet Array Concept Combat Aerolev Unit Concept Weapon Articulator Experimental Core Analyzer Femtoactuators Experimental Force Booster Concept Reaction Jets Concept Phase Shift Module Concept Phase Shift Module Graphene Brace Concept Beam Splitter Concept Beam Splitter Concept Energy Mantle Concept Antimissile System Transdimensional Reconstructor Concept Plasma Driver Concept EMP Blanket Launcher Concept Rapid Grenade Launcher Experimental Jetlance Experimental Jetlance [Rating: 312] Favorites ----------- Power Concept Zero-point Core Engine Cooled Ion Engine Power Core Concept Zero-point Core Reactor Hybrid Graviton Reactor Propulsion Light Treads Treads Light Treads Leg Aluminum Leg Wheel Compact Wheel Hover Unit Experimental Antigrav System Flight Unit Improved Flight Unit Utility Experimental Core Analyzer Device Concept Cloak Mesh Storage Huge Storage Unit Processor Experimental Core Analyzer Hackware Improved Hacking Suite Protection Medium Armor Plating Weapon Autogun Energy Gun Medium Laser Energy Cannon Matter Neutralizer Ballistic Gun Autogun Launcher Rocket Launcher Special Weapon Plasma Cutter Slashing Weapon Companion Sword Piercing Weapon Experimental Jetlance Build | -11 -10 -10 -9 -9 -9 -9 -6 -6 -6 -6 -6 -5 -5 -5 -5 -4 -4 -4 -4 -4 -3 -3 -3 -2 -2 -2 -1 -1 -1 ------- Run | Yrd Mat Min Mat Sto Rec Scr Fac Ext Cet Arc Hub Fac Upp Upp War Pro Fac Upp Upp Zhi Pro Res Tes Res Qua Frg Acc Com Ac0 Slots Evolved 18 | . . . 2 . . . 6 . . . . 2 . . . . 2 . . . . 2 . 2 . . 2 . . Power 2 | . . . . . . . . . . . . . . . . . . . . . . . . 1 . . 1 . . Propulsion 6 | . . . 1 . . . 2 . . . . 1 . . . . 1 . . . . . . 1 . . . . . Utility 9 | . . . . . . . 4 . . . . 1 . . . . 1 . . . . 2 . . . . 1 . . Weapon 1 | . . . 1 . . . . . . . . . . . . . . . . . . . . . . . . . . Parts Attached 239 | 7 4 3 15 15 6 4 13 3 . . 2 7 . 1 1 6 4 . . 6 . 10 4 6 2 82 3 12 23 Power 35 | 1 . . 2 1 1 . 2 1 . . 1 2 . . . 1 1 . . 1 . 1 . 3 . 10 . . 7 Engine 7 | 1 . . 2 1 . . 1 . . . . 1 . . . . 1 . . . . . . . . . . . . Core 12 | . . . . . 1 . 1 1 . . 1 1 . . . 1 . . . . . . . 2 . 4 . . . Reactor 16 | . . . . . . . . . . . . . . . . . . . . 1 . 1 . 1 . 6 . . 7 Propulsion 80 | 2 . 2 8 12 3 3 3 1 . . . 1 . . . 2 . . . 2 . 6 . 1 . 26 . 2 6 Treads 21 | . . 2 7 12 . . . . . . . . . . . . . . . . . . . . . . . . . Leg 2 | 2 . . . . . . . . . . . . . . . . . . . . . . . . . . . . . Wheel 3 | . . . . . 3 . . . . . . . . . . . . . . . . . . . . . . . . Hover 19 | . . . . . . . . . . . . . . . . . . . . . . . . . . 11 . 2 6 Flight 35 | . . . 1 . . 3 3 1 . . . 1 . . . 2 . . . 2 . 6 . 1 . 15 . . . Utility 90 | 2 2 1 2 1 1 . 7 1 . . 1 3 . . . 2 2 . . 3 . 3 2 2 1 37 2 7 8 Device 47 | 1 . . . . . . 2 . . . 1 . . . . 2 . . . 1 . 2 1 2 1 23 1 5 5 Storage 9 | 1 1 1 1 . . . 1 . . . . 1 . . . . . . . . . 1 . . . 1 . 1 . Processor 16 | . . . . . . . 2 . . . . 1 . . . . . . . . . . . . . 11 . . 2 Hackware 6 | . . . . . 1 . 1 . . . . 1 . . . . . . . 1 . . 1 . . . 1 . . Protection 12 | . 1 . 1 1 . . 1 1 . . . . . . . . 2 . . 1 . . . . . 2 . 1 1 Artifact . | . . . . . . . . . . . . . . . . . . . . . . . . . . . . . . Weapon 34 | 2 2 . 3 1 1 1 1 . . . . 1 . 1 1 1 1 . . . . . 2 . 1 9 1 3 2 Energy Gun 5 | 2 . . . . . . . . . . . . . . 1 . . . . . . . 2 . . . . . . Energy Cannon 3 | . . . . . . . 1 . . . . . . 1 . . . . . . . . . . . . 1 . . Ballistic Gun 10 | . 2 . 1 1 1 . . . . . . . . . . . . . . . . . . . . 4 . . 1 Ballistic Cannon . | . . . . . . . . . . . . . . . . . . . . . . . . . . . . . . Launcher 4 | . . . 1 . . . . . . . . . . . . . 1 . . . . . . . . 1 . 1 . Special Weapon 2 | . . . . . . . . . . . . 1 . . . 1 . . . . . . . . . . . . . Impact Weapon . | . . . . . . . . . . . . . . . . . . . . . . . . . . . . . . Slashing Weapon 6 | . . . 1 . . 1 . . . . . . . . . . . . . . . . . . 1 2 . . 1 Piercing Weapon 4 | . . . . . . . . . . . . . . . . . . . . . . . . . . 2 . 2 . Special Melee Weapon . | . . . . . . . . . . . . . . . . . . . . . . . . . . . . . . Unidentified Prototypes 38 | . . . 2 . . 1 1 . . . . . . . 1 1 . . . 5 . 1 4 . 1 17 . 2 2 Corrupted Parts 2 | . . . . . . . . . . . . . . . . . . . . . . . . . . 2 . . . System Corruption 11 | . . . . . . . . . . . . . . . . . . . . . . . . . . 11 . . . Parts Lost 64 | . . . 2 2 . . 1 6 . . 3 . . . . 5 . . . . . 3 1 2 . 17 . 5 17 Power 15 | . . . 1 . . . 1 1 . . 2 . . . . 1 . . . . . . . 1 . 3 . . 5 Propulsion 22 | . . . . . . . . 2 . . . . . . . 2 . . . . . 2 . . . 9 . 4 3 Utility 23 | . . . 1 1 . . . 2 . . 1 . . . . 2 . . . . . 1 1 1 . 5 . 1 7 Weapon 4 | . . . . 1 . . . 1 . . . . . . . . . . . . . . . . . . . . 2 Highest Loss Streak 6 | . . . 1 1 . . 1 3 . . 3 . . . . 3 . . . . . 2 1 2 . 4 . 4 6 To Critical Strikes 3 | . . . . . . . . 1 . . . . . . . . . . . . . . . . . . . . 2 Average Backups 16 | 3 8 10 17 24 22 17 10 9 10 9 8 7 9 8 9 8 7 9 9 9 9 11 11 13 13 17 20 21 19 Power . | . 1 1 . . . . . 1 1 1 . 1 1 1 1 . . 1 1 1 1 1 2 . . 1 1 1 1 Propulsion 4 | 1 2 2 5 9 11 7 2 1 2 2 2 1 1 1 1 . . 1 1 1 2 2 2 2 3 2 2 2 3 Utility 6 | . . 2 5 8 6 5 3 3 4 4 3 2 2 3 3 3 3 4 4 3 4 4 4 5 6 8 11 11 7 Weapon 3 | . 3 4 5 4 2 . 2 1 1 . 1 1 2 1 2 1 1 2 2 2 1 2 1 3 2 4 5 5 5 Tool/Special . | . . . . . . . . . . . . . . . . . . . . . . . . . . . . . . Unused Backups 91 | . 5 1 7 3 3 1 3 3 . . . . 2 . 1 . . . . 1 . . . . . 49 . 3 9 Power 13 | . . . 2 . . 1 . 3 . . . . 1 . . . . . . 1 . . . . . 3 . . 2 Propulsion 13 | . . . 2 1 . . 1 . . . . . . . 1 . . . . . . . . . . 6 . 1 1 Utility 32 | . 2 . 1 2 2 . 2 . . . . . . . . . . . . . . . . . . 18 . 1 4 Weapon 31 | . 3 1 2 . 1 . . . . . . . 1 . . . . . . . . . . . . 21 . 1 1 Tool/Special 2 | . . . . . . . . . . . . . . . . . . . . . . . . . . 1 . . 1 Average Slot Usage (%) 89 | . 100 100 98 100 94 75 82 79 73 75 83 81 88 88 89 88 81 84 84 87 89 78 83 81 83 86 95 91 90 Engine 4 | . 14 14 10 11 10 . . . . . . 1 5 5 5 4 . . . . . . . . . . . . . Core 3 | . . . . . . 11 5 6 6 6 5 3 . . . . 5 5 5 5 5 . . 2 4 1 12 12 3 Reactor 1 | . . . . . . . . . . . . . . . . . . . . . . 3 4 5 4 5 . . 7 Treads 7 | . . 5 33 33 17 . . . . . . . . . . . . . . . . . . . . . . . . Leg 2 | . 28 22 . . . . . . . . . . . . . . . . . . . . . . . . . . . Wheel 3 | . . . . . 15 31 . . . . . . . . . . . . . . . . . . . . . . . Hover 5 | . . . . . . . . . . . . . . . . . . . . . . . . . . 8 32 29 28 Flight 10 | . . . . . . . 32 33 33 33 33 34 35 35 35 35 31 31 31 34 36 29 28 26 26 18 . . . Device 7 | . 4 . . . . . 12 5 . . 10 10 11 11 11 10 8 10 10 10 10 10 14 19 20 10 24 22 20 Storage 7 | . 14 14 11 11 11 10 6 6 6 6 6 5 5 5 5 5 5 5 5 5 5 4 4 4 4 4 4 4 3 Processor 8 | . . . . . . . 5 6 6 6 6 10 11 11 11 11 10 10 10 10 10 9 9 8 8 24 12 12 13 Hackware 3 | . . . . . 4 11 6 6 6 6 6 6 11 11 11 11 10 10 10 10 10 9 12 9 8 . 3 1 . Protection 4 | . 9 14 10 11 6 . 5 5 6 6 5 . . . . . 3 5 5 4 5 4 3 . . 1 . 1 2 Ballistic Gun 10 | . 18 28 32 32 23 . . . . . . . . . . . . . . . . . . . . . . . . Slashing Weapon 4 | . . . . . 3 10 3 6 6 6 6 5 5 5 5 5 5 5 5 5 5 4 4 4 6 6 8 7 5 Peak Build Rating 312 | 7 11 11 20 22 22 23 60 55 46 51 60 66 67 73 77 87 90 92 92 99 105 129 140 153 171 294 312 312 306 Average Rating 109 | 5 9 11 17 20 19 19 47 49 46 47 54 60 66 66 68 74 81 85 86 92 98 114 131 143 156 230 311 301 280 On Entrance 86 | . 7 11 11 20 20 18 23 55 46 46 46 39 66 66 66 69 71 85 85 86 98 98 123 131 139 170 286 312 305 Avg Prop Armor Cover (%) 6 | . . . . . 12 . . . . . . 8 . . . . . . . 1 3 3 . 3 . 6 . . . Naked Turns . | . . . . . . . . . . . . . . . . . . . . . . . . . . . . . . Heaviest Build 126 | 14 26 36 104 104 104 90 26 26 24 24 26 30 25 25 25 29 34 34 34 34 34 40 40 46 53 78 92 122 126 Greatest Support 147 | 20 20 40 60 60 60 48 26 26 26 26 26 31 31 31 31 40 40 40 40 40 35 58 51 70 70 138 138 138 147 Greatest Overweight (x) 6 | . 1 1 1 1 6 1 1 . . . . . . . . . 1 . . . . . . . . 3 . 1 1 Average Overweight (x) . | . . . . 1 3 . . . . . . . . . . . . . . . . . . . . . . . . Largest Inventory Capacity 25 | 8 10 15 25 25 25 25 25 10 10 10 10 10 10 10 10 10 10 10 10 10 10 15 15 15 15 25 25 25 25 Average Capacity 19 | 7 9 11 20 25 25 24 10 10 10 10 10 10 10 10 10 10 10 10 10 10 10 14 15 15 15 22 25 25 25 Most Carried 25 | 5 10 12 23 25 25 20 20 10 10 10 9 9 10 9 10 10 10 9 10 10 10 14 15 15 15 25 22 25 25 Average Carried 16 | 3 8 10 17 23 22 17 9 9 10 9 8 7 9 8 9 7 7 8 9 9 9 11 11 14 14 18 21 23 19 Final Capacity 25 | 8 10 15 25 25 25 25 10 10 10 10 10 10 10 10 10 10 10 10 10 10 10 15 15 15 15 25 25 25 25 Final Carried 24 | 5 10 10 23 23 16 20 10 10 10 10 9 9 9 9 10 6 9 9 10 10 10 11 15 15 14 23 22 24 20 Class Distribution -------------------- 22% | Scavenger-Sprinter 14% | Tank 11% | Mutant 8% | Scavenger-Mutant 8% | Hacker-Scout 7% | Commander-Tank 7% | Scavenger-Gladiator 5% | Scout 4% | Sprinter 3% | Hacker-Sprinter Dominant Class ---------------- Mutant | -10/Materials Mutant | -10/Mines Tank | -9/Materials Tank | -9/Storage Commander-Tank | -9/Recycling Scavenger-Mutant | -9/Scraptown Scout | -6/Factory Sprinter | -6/Extension Sprinter | -6/Cetus Sprinter | -6/Archives Scout | -6/Hub_04(d) Scout | -5/Factory Hacker-Scout | -5/Upper Caves Hacker-Scout | -5/Upper Caves Hacker-Scout | -5/Warlord Hacker-Sprinter | -4/Proximity Caves Hacker-Scout | -4/Factory Hacker-Scout | -4/Upper Caves Hacker-Scout | -4/Upper Caves Hacker-Scout | -4/Zhirov Hacker-Scout | -3/Proximity Caves Hacker-Scout | -3/Research Hacker-Scout | -3/Testing Hacker-Ninja | -2/Research Hacker-Ninja | -2/Quarantine Scavenger-Sprinter | -2/Protoforge Hacker-Sprinter | -1/Access Scavenger-Sprinter | -1/Command Scavenger-Sprinter | -1/Access_0 Resources | -11 -10 -10 -9 -9 -9 -9 -6 -6 -6 -6 -6 -5 -5 -5 -5 -4 -4 -4 -4 -4 -3 -3 -3 -2 -2 -2 -1 -1 -1 ----------- Run | Yrd Mat Min Mat Sto Rec Scr Fac Ext Cet Arc Hub Fac Upp Upp War Pro Fac Upp Upp Zhi Pro Res Tes Res Qua Frg Acc Com Ac0 Matter Collected 8238 | 265 283 78 1627 1171 217 80 383 309 . . 60 95 20 10 . 9 183 20 . 120 40 57 235 18 20 2047 60 561 270 Remotely . | . . . . . . . . . . . . . . . . . . . . . . . . . . . . . . Salvage Created 17963 | 140 670 41 1847 1696 857 . 412 534 . . 43 273 . . . 9 342 . . 456 . 89 239 18 . 3252 157 3111 3777 Parts 906 | 6 53 4 117 110 43 . 14 13 . . 7 8 . . . 4 11 . . 4 . 8 4 3 . 188 4 117 188 Haulers Intercepted 19 | . 2 . 6 6 . . . . . . . 2 . . . . 2 . . . . . . . . . 1 . . Recyclers Shooed 6 | . 1 . 3 . . . 1 1 . . . . . . . . . . . . . . . . . . . . . Parts Field Recycled . | . . . . . . . . . . . . . . . . . . . . . . . . . . . . . . Retrieved Matter . | . . . . . . . . . . . . . . . . . . . . . . . . . . . . . . Parts Self-Destructed 11 | . . . . . . . . . . . . . . 4 . 4 . . . 3 . . . . . . . . . Prevented 3 | . . . . . . . . . . . . . . 3 . . . . . . . . . . . . . . . Parts Restored 17 | . . . . . . . . . . . . . . . . . . . . . . . . . . 17 . . . Faulty 17 | . . . . . . . . . . . . . . . . . . . . . . . . . . 17 . . . Kills | -11 -10 -10 -9 -9 -9 -9 -6 -6 -6 -6 -6 -5 -5 -5 -5 -4 -4 -4 -4 -4 -3 -3 -3 -2 -2 -2 -1 -1 -1 ------- Run | Yrd Mat Min Mat Sto Rec Scr Fac Ext Cet Arc Hub Fac Upp Upp War Pro Fac Upp Upp Zhi Pro Res Tes Res Qua Frg Acc Com Ac0 Combat Hostiles Destroyed 207 | . 12 3 31 29 9 . 3 9 . . . . . . . 1 1 . . . . 3 . . . 45 . 22 39 Melee 92 | . . . . . 1 . . . . . . . . . . 1 . . . . . 3 . . . 31 . 22 34 Guns 90 | . 12 3 27 29 8 . . . . . . . . . . . . . . . . . . . . 11 . . . Cannons 1 | . . . . . . . . . . . . . . . . . . . . . . . . . . 1 . . . AOE 18 | . . . 4 . . . 3 9 . . . . . . . . 1 . . . . . . . . 1 . . . Classes Destroyed 20 | 2 5 . 3 . 2 . . 1 . . . . . . . 1 . . . . . 1 . . . 3 . 2 . Worker 10 | . . . 3 2 . . 1 1 . . . 3 . . . . . . . . . . . . . . . . . Builder 14 | . 4 . 3 1 2 . . 1 . . 1 . . . . . 1 . . . . . . 1 . . . . . Tunneler 5 | 4 . . 1 . . . . . . . . . . . . . . . . . . . . . . . . . . Hauler 19 | . 2 . 6 6 . . . . . . . 2 . . . . 2 . . . . . . . . . 1 . . Recycler 19 | 1 1 . 3 2 4 . 3 2 . . . . . . . . 1 . . . . . 2 . . . . . . Operator 3 | . . . 1 1 . . . . . . 1 . . . . . . . . . . . . . . . . . . Drone 15 | . . . . . . . . . . . . . . . . 1 . . . . . . . . . 14 . . . Watcher 11 | . 2 . 2 2 . . . . . . . . . . . . . . . . . . . . . 1 1 3 . Swarmer 30 | . 6 3 6 8 . . 3 3 . . . . . . . . 1 . . . . . . . . . . . . Cutter 3 | . . . . . . . . . . . . . . . . . . . . . . 3 . . . . . . . Grunt 42 | . 6 . 16 10 3 . . 4 . . . . . . . . . . . . . . . . . . . 3 . Duelist 2 | . . . . . . . . 2 . . . . . . . . . . . . . . . . . . . . . Researcher 8 | . . . . . . . . . . . . . . . . . . . . . . . . . . 8 . . . Sentry 34 | . . . 9 11 3 . . . . . . . . . . . . . . . . . . . . 10 . 1 . Hunter 5 | . . . . . 1 . . . . . . . . . . . . . . . . . . . . 4 . . . Programmer 11 | . . . . . 2 . . . . . . . . . . . . . . . . . . . . . . 9 . Heavy 1 | . . . . . . . . . . . . . . . . . . . . . . . . . . . . 1 . Behemoth 1 | . . . . . . . . . . . . . . . . . . . . . . . . . . . . 1 . M Guard 2 | . . . . . . . . . . . . . . . . . . . . . . . . . . . . 2 . Enhanced Grunt 23 | . . . . . . . . . . . . . . . . . . . . . . . . . . . . . 23 Enhanced Sentry 2 | . . . . . . . . . . . . . . . . . . . . . . . . . . . . . 2 Enhanced Hunter 7 | . . . . . . . . . . . . . . . . . . . . . . . . . . . . . 7 Hotshot 2 | . . . . . . . . . . . . . . . . . . . . . . . . . . 2 . . . Decapitator 4 | . . . . . . . . . . . . . . . . . . . . . . . . . . 4 . . . Immortal 4 | . . . . . . . . . . . . . . . . . . . . . . . . . . 4 . . . Combat Programmer 2 | . . . . . . . . . . . . . . . . . . . . . . . . . . . . 2 . Alpha 7 2 | . . . . . . . . . . . . . . . . . . . . . . . . . . 2 . . . V-Series 5 | . . . . . . . . . . . . . . . . . . . . . . . . . . 5 . . . Guerrilla 1 | . . . . . . . . . . . . . . . . . . . . . . . . . . . . 1 . Best Kill Streak 8 | 2 4 3 8 7 4 . 3 5 . . 1 3 . . . 1 2 . . . . 3 1 1 . 6 1 5 4 Combat Bots Only 6 | . 3 3 5 6 3 . 3 4 . . . . . . . 1 1 . . . . 3 . . . 6 . 5 4 Max Kills in Single Turn 3 | 1 1 1 3 2 2 . 1 3 . . 1 1 . . . 1 1 . . . . 1 1 1 . 1 1 1 1 Gunslinging 1 | . . . 1 . . . . . . . . . . . . . . . . . . . . . . . . . . Exploded 3 | . . . 2 . . . 1 3 . . . . . . . . 1 . . . . . . . . 1 . . . Melee 1 | . . . . . 1 . . . . . . . . . . 1 . . . . . 1 . . . 1 . 1 1 Uniques/NPCs Destroyed 9 | . . . . . . . . . . . . . . . . . . . . . . . . . . . . 2 7 MAIN.C Shell (-1/Command) MAIN.C (-1/Command) A8 (-1/Access_0) A6 (-1/Access_0) A5 (-1/Access_0) A2 (-1/Access_0) Architect (-1/Access_0) A4 (-1/Access_0) A3 (-1/Access_0) Combat | -11 -10 -10 -9 -9 -9 -9 -6 -6 -6 -6 -6 -5 -5 -5 -5 -4 -4 -4 -4 -4 -3 -3 -3 -2 -2 -2 -1 -1 -1 -------- Run | Yrd Mat Min Mat Sto Rec Scr Fac Ext Cet Arc Hub Fac Upp Upp War Pro Fac Upp Upp Zhi Pro Res Tes Res Qua Frg Acc Com Ac0 Hostile Shots Fired 1870 | . 36 5 130 76 14 . 65 98 1 5 41 12 . . . 58 2 . 2 . 2 53 2 43 17 222 . 291 695 Missed 933 | . 9 . 26 19 6 . 40 50 1 4 26 8 . . . 34 2 . 1 . 2 23 1 24 12 82 . 152 411 Intercepted 33 | . . . . . . . . . . . . . . . . . . . . . . . . . . 6 . 27 . Deflected 5 | . . . . . . . . . . . . . . . . . . . . . . . . . . 2 . 1 2 Hits 937 | . 27 5 104 57 8 . 25 48 . 1 15 4 . . . 24 . . 1 . . 30 1 19 5 140 . 139 284 Melee 32 | . . . . . . . . . . . . . . . . 1 . . . . . 12 . . . 5 . . 14 Projectile 905 | . 27 5 104 57 8 . 25 48 . 1 15 4 . . . 23 . . 1 . . 18 1 19 5 135 . 139 270 AOE 20 | . . . . . . . . . . . 1 . . . . . . . . . . 2 . . . 9 . 8 . Critical Strikes 69 | . . . 2 3 . . . 2 2 . . . . . . . . . . . . 8 . . . 11 . 17 24 Actively Blocked 19 | . . . . . . . . . . . . . . . . . . . . . . 8 . . . 9 . . 2 Part Disruptions 4 | . . . . . . . . . . . . . . . . . . . . . . . . . . 1 . 2 1 Damage Taken 18776 | . 262 43 1215 725 103 . 306 478 104 25 282 175 . . . 453 11 . 16 . 6 796 21 296 88 4543 36 2769 6023 Core 3065 | . 42 10 122 62 . . 77 90 . . 46 139 . . . 114 11 . . . 6 67 . 69 . 960 . 298 952 Absorbed by Shields 5212 | . . . . . . . . 24 21 . . . . . . . . . . . . . . . . . 36 2368 2763 Redirected to Shielding 84 | . . . . . . . . . . . . . . . . . . . . . . . . . . 84 . . . Ignored by Resistances 1239 | . . . . . . . . . . . . . . . . . . . . . . . . . . 104 . . 1135 Regen/Repaired (Parts) 4444 | . . . 349 165 . . . . . . . 28 . . 1 . . . . . . . . . 44 1258 49 1227 1323 Core Remaining (%) 68 | 100 . 79 . . . 54 . . . . 74 . . . . 74 . . . . 98 . 94 . . 29 . . 14 Volleys Fired 443 | 14 50 4 113 80 11 . 27 22 . 3 2 2 . 3 . 7 3 2 3 . 4 2 14 1 . 64 1 11 . Largest 3 | 2 2 2 3 3 3 . 1 1 . 1 1 1 . 1 . 1 1 1 1 . 1 1 1 1 . 2 1 1 . Hottest 140 | 90 90 46 69 69 69 . 85 85 . 85 85 85 . 105 . 105 105 105 105 . 105 105 105 105 . 64 140 140 . Shots Fired 949 | 28 98 8 331 240 33 . 27 22 . 3 2 2 . 3 . 7 3 2 3 . 4 2 14 1 . 103 1 12 . Gun 836 | 28 98 8 327 240 33 . . . . . . . . . . . . . . . . . . . . 102 . . . Cannon 72 | . . . . . . . 20 2 . 3 2 2 . 3 . 7 2 2 3 . 4 2 14 1 . . 1 4 . Launcher 41 | . . . 4 . . . 7 20 . . . . . . . . 1 . . . . . . . . 1 . 8 . Special . | . . . . . . . . . . . . . . . . . . . . . . . . . . . . . . Kinetic 772 | . 62 8 327 240 33 . . . . . . . . . . . . . . . . . . . . 102 . . . Thermal 136 | 28 36 . . . . . 20 2 . 3 2 2 . 3 . 7 2 2 3 . 4 2 14 1 . . 1 4 . Explosive 32 | . . . 4 . . . 7 20 . . . . . . . . . . . . . . . . . 1 . . . Electromagnetic 9 | . . . . . . . . . . . . . . . . . 1 . . . . . . . . . . 8 . Robot Hit Streak 31 | 9 9 5 26 31 12 . 19 20 . . . . . . . . . . . . . . . . . 23 . 17 . Robot Miss Streak 5 | 1 3 1 5 3 2 . . 2 . . . . . . . . . . . . . . . . . 1 . 1 . Penetration Max 1 | . . . . . . . . . . . . . . . . . . . . . . . . . . 1 . . . Secondary Targets 11 | . 1 . 5 1 1 . . . . . . . . . . . . . . . . . . . . 3 . . . Max Gunslinging Chain 2 | . 1 . 2 1 1 . . . . . . . . . . . . . . . . . . . . 1 . . . Autonomous 10 | . . . . . . . . . . . . . . . . . . . . . . . . . . 1 . . 9 Shots Hit Robots 1161 | 22 57 5 219 168 35 . 13 13 . . 2 11 . . . 1 5 . . 20 1 4 2 1 . 182 4 110 286 Core Hits 522 | 6 28 4 78 61 18 . 9 35 . . 1 3 . . . 1 7 . . 5 . 1 2 . . 91 1 53 118 Critical Kills 11 | . 1 1 1 2 . . . . . . . . . . . . . . . . . . . . . 6 . . . Critical Parts Destroyed 11 | . . . 2 3 . . . . . . . . . . . . . . . . . . . . . 6 . . . Critical Strikes 113 | . 1 1 3 6 . . . . . . . . . . . . . . . . . . . . . 28 1 29 44 Destroy 25 | . 1 1 3 6 . . . . . . . . . . . . . . . . . . . . . 14 . . . Sever 9 | . . . . . . . . . . . . . . . . . . . . . . . . . . 6 1 . 2 Impale 73 | . . . . . . . . . . . . . . . . . . . . . . . . . . 8 . 29 36 Melee Attacks 817 | . . . 2 3 13 . 24 12 . 3 7 33 1 . . 8 22 2 . 22 16 21 28 18 17 123 13 115 314 Impact . | . . . . . . . . . . . . . . . . . . . . . . . . . . . . . . Slashing 640 | . . . 2 3 13 . 24 12 . 3 7 33 1 . . 8 22 2 . 22 16 21 28 18 17 91 13 48 236 Piercing 177 | . . . . . . . . . . . . . . . . . . . . . . . . . . 32 . 67 78 Sneak Attacks 54 | . . . . . 8 . 2 1 . . 1 5 . . . . 5 . . . . . 2 1 . 22 1 3 3 Combat Hostiles 8 | . . . . . . . . . . . . . . . . . . . . . . . . . . 5 . 2 1 Follow-up Attacks 14 | . . . . . . . . . . . . . . . . . . . . 1 . . . . . . . 6 7 Damage Inflicted 59333 | 252 803 72 3844 2661 1431 . 757 1979 . . 140 692 . . . 51 544 . . 1604 54 217 151 96 . 12381 429 8829 22346 Guns 10159 | 252 801 70 3426 2646 405 . . . . . . . . . . . . . . . . . . . . 2559 . . . Cannons 1230 | . . . . . . . 338 30 . . . . . . . . . . . . . . . . . 90 . 20 752 Explosions 2830 | . . . 418 . . . 248 1555 . . . . . . . . 54 . . . . . . . . 109 . 446 . Melee 45095 | . . . . . 1026 . 171 394 . . 140 692 . . . 51 490 . . 1604 54 217 151 96 . 9623 429 8363 21594 Ramming 19 | . 2 2 . 15 . . . . . . . . . . . . . . . . . . . . . . . . . Kinetic 9624 | . 518 70 3426 2646 405 . . . . . . . . . . . . . . . . . . . . 2559 . . . Thermal 923 | 252 283 . . . . . 338 30 . . . . . . . . . . . . . . . . . . . 20 . Explosive 2330 | . . . 418 . . . 248 1555 . . . . . . . . . . . . . . . . . 109 . . . Electromagnetic 500 | . . . . . . . . . . . . . . . . . 54 . . . . . . . . . . 446 . Impact . | . . . . . . . . . . . . . . . . . . . . . . . . . . . . . . Slashing 33888 | . . . . . 1026 . 171 394 . . 140 692 . . . 51 490 . . 1604 54 217 151 96 . 7447 429 4145 16781 Piercing 11207 | . . . . . . . . . . . . . . . . . . . . . . . . . . 2176 . 4218 4813 Phasic 842 | . . . . . . . . . . . . . . . . . . . . . . . . . . 90 . . 752 Highest Corruption 19 | . . . . . 2 . . . . . . . . . . . . . . . . 5 5 . . 13 . 19 1 Average Corruption 4 | . . . . . 1 . . . . . . . . . . . . . . . . 1 5 . . 2 . 13 1 Corruption Purged 19 | . . . . . . . . . . . . . . . . . . . . . . . . . . . . 19 . Corruption Blocked 4 | . . . . . . . . . . . . . . . . . . . . . . . . . . 4 . . . Effects 89 | . . . . . 15 . . . . . . . . . . . . . . . . 2 5 . . 10 . 48 9 Message Errors 26 | . . . . . 6 . . . . . . . . . . . . . . . . 1 1 . . 1 . 14 3 Matter Fused 18 | . . . . . 2 . . . . . . . . . . . . . . . . . 3 . . 4 . 6 3 Heat Flow Errors 9 | . . . . . 3 . . . . . . . . . . . . . . . . . . . . 1 . 5 . Energy Discharges 11 | . . . . . 2 . . . . . . . . . . . . . . . . . . . . . . 7 2 Parts Rejected 8 | . . . . . . . . . . . . . . . . . . . . . . 1 . . . . . 7 . Data Loss (minor) 10 | . . . . . 2 . . . . . . . . . . . . . . . . . 1 . . 2 . 4 1 Data Loss (major) 1 | . . . . . . . . . . . . . . . . . . . . . . . . . . . . 1 . Misfires 1 | . . . . . . . . . . . . . . . . . . . . . . . . . . . . 1 . Misdirections 5 | . . . . . . . . . . . . . . . . . . . . . . . . . . 2 . 3 . Overload Shots . | . . . . . . . . . . . . . . . . . . . . . . . . . . . . . . Overflow Damage 5243 | . . . 31 . 314 . 74 191 . . 52 118 . . . . . . . 368 14 96 . 56 . 1196 76 800 1857 Projectiles 58 | . . . . . . . 32 . . . . . . . . . . . . . . . . . . . . . 26 Explosions 67 | . . . 31 . . . . 36 . . . . . . . . . . . . . . . . . . . . . Melee 5118 | . . . . . 314 . 42 155 . . 52 118 . . . . . . . 368 14 96 . 56 . 1196 76 800 1831 Knockbacks . | . . . . . . . . . . . . . . . . . . . . . . . . . . . . . . Impact . | . . . . . . . . . . . . . . . . . . . . . . . . . . . . . . Kinetic . | . . . . . . . . . . . . . . . . . . . . . . . . . . . . . . Secondary . | . . . . . . . . . . . . . . . . . . . . . . . . . . . . . . Self-Inflicted Damage 77 | . . . 31 . . . . . . . . . . . . . . . . . . . . . . . . 46 . Shots 2 | . . . 1 . . . . . . . . . . . . . . . . . . . . . . . . 1 . Rammed 2 | . . . . 2 . . . . . . . . . . . . . . . . . . . . . . . . . Targets Rammed 5 | . 1 1 . 3 . . . . . . . . . . . . . . . . . . . . . . . . . Kicked 2 | . 1 1 . . . . . . . . . . . . . . . . . . . . . . . . . . . Crushed 1 | . . . . 1 . . . . . . . . . . . . . . . . . . . . . . . . . Highest Temperature 403 | 192 261 34 240 198 186 . 222 76 3 138 46 60 2 144 2 147 42 104 172 4 150 302 403 267 46 197 20 208 10 Average Temperature 51 | 81 47 17 52 47 54 . 69 27 1 71 8 4 2 23 2 62 6 26 69 3 24 101 83 66 20 48 15 72 10 Received Heat Transfer 1930 | . 78 . 345 270 30 . 81 102 4 9 36 9 . . . 51 . . . . . 36 . 9 9 660 . 54 147 Effects 4 | . . . . . . . . . . . . . . . . . . . . . . 1 3 . . . . . . Shutdowns 1 | . . . . . . . . . . . . . . . . . . . . . . . 1 . . . . . . Energy Bleed 1 | . . . . . . . . . . . . . . . . . . . . . . 1 . . . . . . . Interference 2 | . . . . . . . . . . . . . . . . . . . . . . . 2 . . . . . . Siege Activations . | . . . . . . . . . . . . . . . . . . . . . . . . . . . . . . Martial Activations . | . . . . . . . . . . . . . . . . . . . . . . . . . . . . . . Shielding Activations . | . . . . . . . . . . . . . . . . . . . . . . . . . . . . . . Robots Disrupted 2 | . . . . . . . . . . . . . . . . . . . . . . . . . . . . . 2 Combat Hostiles 2 | . . . . . . . . . . . . . . . . . . . . . . . . . . . . . 2 Robots Corrupted 1 | . . . . . . . . . . . . . . . . . . . . . . . . . . . . 1 . Combat Hostiles . | . . . . . . . . . . . . . . . . . . . . . . . . . . . . . . Parts Fried 3 | . . . . . . . . . . . . . . . . . . . . . . . . . . . . 3 . Impact Corruptions . | . . . . . . . . . . . . . . . . . . . . . . . . . . . . . . Robots Melted . | . . . . . . . . . . . . . . . . . . . . . . . . . . . . . . Combat Hostiles . | . . . . . . . . . . . . . . . . . . . . . . . . . . . . . . Parts Melted 6 | . 1 . . . . . 3 . . . . . . . . . . . . . . . . . . 2 . . . Heat Transferred 1919 | 682 768 . . . . . 407 37 . . . . . . . . . . . . . . . . . . . 25 . Parts Sabotaged . | . . . . . . . . . . . . . . . . . . . . . . . . . . . . . . Parts Stolen . | . . . . . . . . . . . . . . . . . . . . . . . . . . . . . . Parts Stripped 78 | . . . . . . . . . . . . . . . . . . . . . . . . . . 18 . . 60 Power Chain Reactions . | . . . . . . . . . . . . . . . . . . . . . . . . . . . . . . Alert | -11 -10 -10 -9 -9 -9 -9 -6 -6 -6 -6 -6 -5 -5 -5 -5 -4 -4 -4 -4 -4 -3 -3 -3 -2 -2 -2 -1 -1 -1 ------- Run | Yrd Mat Min Mat Sto Rec Scr Fac Ext Cet Arc Hub Fac Upp Upp War Pro Fac Upp Upp Zhi Pro Res Tes Res Qua Frg Acc Com Ac0 Maximum Alert Level 3 | . . . 1 2 1 . 1 1 1 . . . . . . . . . . . . 3 3 2 2 3 2 3 . Low Security (%) 44 | 100 100 100 60 2 74 . 62 77 69 100 100 100 . . . . 100 . . . . . . . . 11 . 6 . Level 1 21 | . . . 39 26 25 . 37 22 30 . . . . . . . . . . . . . . 3 97 14 79 26 . Level 2 33 | . . . . 70 . . . . . . . . . . . . . . . . . 67 99 96 2 72 20 66 . Level 3 . | . . . . . . . . . . . . . . . . . . . . . . 32 . . . 1 . . . Level 4 . | . . . . . . . . . . . . . . . . . . . . . . . . . . . . . . Level 5 . | . . . . . . . . . . . . . . . . . . . . . . . . . . . . . . High Security . | . . . . . . . . . . . . . . . . . . . . . . . . . . . . . . Max Security . | . . . . . . . . . . . . . . . . . . . . . . . . . . . . . . Peak Influence 802 | 5 80 60 371 569 277 . 277 399 234 72 97 140 . . . . 192 . . . . 802 697 535 421 736 441 366 . Initial 616 | . 3 . . 137 208 . . 79 216 56 21 39 . . . . 150 . . . . 616 445 391 300 236 441 185 . Average 267 | 1 22 5 166 433 175 . 140 140 172 66 49 72 . . . . 151 . . . . 653 558 451 349 468 312 265 . Influence Increases 10806 | 25 433 70 1203 1031 551 . 542 880 84 16 161 290 . . . 80 442 . 45 15 45 906 432 284 261 1480 80 1207 243 Destroy 0b10 Robot/C 3960 | . 240 60 680 620 260 . 60 440 40 . . . . . . . 20 . . . . 60 . . . 780 . 700 . Destroy 0b10 Robot/NC 555 | 25 45 . 100 70 50 . 20 50 . . 10 25 . . . 5 20 . . 15 . . 10 5 . 80 10 15 . Destroy Leader 666 | . 68 10 198 196 . . 10 46 . . . 4 . . . . 14 . . . . 10 . . . 32 4 74 . Allied During Kill 349 | . . . 11 77 108 . . 140 13 . . . . . . . . . . . . . . . . . . . . Successful Hack 492 | . 4 . 63 14 12 . 9 28 . . 21 58 . . . . 41 . . . . . 111 15 45 24 26 21 . Select Force Hacks 170 | . . . . . 120 . . . . . 50 . . . . . . . . . . . . . . . . . . Disable Machine 840 | . . . 45 30 . . 15 . . 15 30 30 . . . . 30 . . . . . 90 . 30 300 . 45 180 Destroy Structure 714 | . 1 . 46 9 1 . 38 71 1 1 5 38 . . . . 32 . . . . 26 56 54 36 24 40 232 3 Advance Influence 750 | . . . . . . . . . . . . . . . . . 150 . . . . 600 . . . . . . . Partial Spotted 540 | . . . . . . . 60 30 . . 15 30 . . . . 60 . . . . 30 . 105 45 45 . 60 60 Lose Combat Pursuer 1770 | . 75 . 60 15 . . 330 75 30 . 30 105 . . . 75 75 . 45 . 45 180 165 105 105 195 . 60 . Influence Decreases 10733 | 20 436 72 876 822 957 130 379 656 331 94 141 295 60 17 . 80 258 119 53 72 20 139 527 446 375 1165 525 832 836 Entered New Map 3397 | . 2 2 . 190 328 130 . 84 171 84 41 43 30 4 . . . 69 13 57 . 9 347 306 235 185 295 106 666 Time Decay 5303 | 20 434 70 580 592 589 . 259 352 60 10 70 230 30 13 . 45 238 50 40 15 20 100 150 120 120 770 80 246 . Search Patrol Dispatched 100 | . . . . . . . 100 . . . . . . . . . . . . . . . . . . . . . . Lost Part 620 | . . . 20 20 . . 10 60 . . 30 . . . . 30 . . . . . 30 10 20 . 170 . 50 170 Lost Ally 885 | . . . 20 20 40 . 10 160 100 . . . . . . 5 20 . . . . . 20 . 20 40 . 430 . Purge Threat 428 | . . . 256 . . . . . . . . 22 . . . . . . . . . . . . . . 150 . . Squads Dispatched 54 | . 2 . 2 7 . . 6 2 . . 4 4 . . . . 7 . . . . 6 1 4 1 4 1 3 . Investigation 20 | . 1 . . 1 . . 3 1 . . 2 3 . . . . 5 . . . . . . 2 . 2 . . . Extermination 13 | . . . . . . . 3 . . . . 1 . . . . 1 . . . . 1 1 2 1 . 1 2 . Reinforcement 17 | . 1 . 2 2 . . . 1 . . 2 . . . . . 1 . . . . 5 . . . 2 . 1 . Assault . | . . . . . . . . . . . . . . . . . . . . . . . . . . . . . . Garrison 4 | . . . . 4 . . . . . . . . . . . . . . . . . . . . . . . . . Intercept . | . . . . . . . . . . . . . . . . . . . . . . . . . . . . . . Searches Triggered 1 | . . . . . . . 1 . . . . . . . . . . . . . . . . . . . . . . Construction Impeded 1 | . . . . . . . . 1 . . . . . . . . . . . . . . . . . . . . . Haulers Reinforced . | . . . . . . . . . . . . . . . . . . . . . . . . . . . . . . Active Scanning Responses . | . . . . . . . . . . . . . . . . . . . . . . . . . . . . . . Cargo Convoy Interrupts . | . . . . . . . . . . . . . . . . . . . . . . . . . . . . . . Stealth | -11 -10 -10 -9 -9 -9 -9 -6 -6 -6 -6 -6 -5 -5 -5 -5 -4 -4 -4 -4 -4 -3 -3 -3 -2 -2 -2 -1 -1 -1 --------- Run | Yrd Mat Min Mat Sto Rec Scr Fac Ext Cet Arc Hub Fac Upp Upp War Pro Fac Upp Upp Zhi Pro Res Tes Res Qua Frg Acc Com Ac0 Distress Signals 54 | . 3 . 4 4 . . 2 2 1 . 4 1 . . . . 1 . . . . 2 . . 2 13 . 15 . Communications Jammed 13 | . . . . . . . . . . . . . . . . . . . . . . . . 6 6 1 . . . Distress Signals 13 | . . . . . . . . . . . . . . . . . . . . . . . . 6 6 1 . . . Times Spotted 492 | . 27 3 48 36 8 . 31 31 6 3 20 11 . . . 21 14 . 3 . 7 27 15 16 12 48 3 44 58 Peak Tracking Total 17 | . 4 3 6 5 2 . 8 7 5 3 16 7 . . . 13 4 . 3 . 4 17 6 8 7 4 3 10 5 Tactical Retreats 62 | . 3 . 2 1 . . 9 2 2 . 1 3 . . . 2 4 . 1 . 1 4 4 4 3 10 . 6 . Traps | -11 -10 -10 -9 -9 -9 -9 -6 -6 -6 -6 -6 -5 -5 -5 -5 -4 -4 -4 -4 -4 -3 -3 -3 -2 -2 -2 -1 -1 -1 ------- Run | Yrd Mat Min Mat Sto Rec Scr Fac Ext Cet Arc Hub Fac Upp Upp War Pro Fac Upp Upp Zhi Pro Res Tes Res Qua Frg Acc Com Ac0 Traps Triggered 20 | . 1 . . 1 . . 1 2 . . 1 1 . . . . 2 . . . . 1 . . . 9 1 . . Indirectly . | . . . . . . . . . . . . . . . . . . . . . . . . . . . . . . Trap Hack Attempts . | . . . . . . . . . . . . . . . . . . . . . . . . . . . . . . Triggered . | . . . . . . . . . . . . . . . . . . . . . . . . . . . . . . Disarmed . | . . . . . . . . . . . . . . . . . . . . . . . . . . . . . . Reprogrammed . | . . . . . . . . . . . . . . . . . . . . . . . . . . . . . . Reused . | . . . . . . . . . . . . . . . . . . . . . . . . . . . . . . Traps Extracted . | . . . . . . . . . . . . . . . . . . . . . . . . . . . . . . Installed . | . . . . . . . . . . . . . . . . . . . . . . . . . . . . . . Triggered . | . . . . . . . . . . . . . . . . . . . . . . . . . . . . . . Objects Rigged 2 | . . . . . . . . . . . . . . . . . . . . . . . 2 . . . . . . Machines | -11 -10 -10 -9 -9 -9 -9 -6 -6 -6 -6 -6 -5 -5 -5 -5 -4 -4 -4 -4 -4 -3 -3 -3 -2 -2 -2 -1 -1 -1 ---------- Run | Yrd Mat Min Mat Sto Rec Scr Fac Ext Cet Arc Hub Fac Upp Upp War Pro Fac Upp Upp Zhi Pro Res Tes Res Qua Frg Acc Com Ac0 Machines Disabled 62 | . 1 . 3 2 . . 1 . . 1 2 2 . . 1 . 2 . . . . . 7 . 2 23 . 3 12 Max in Single Turn 1 | . 1 . 1 1 . . 1 . . 1 1 1 . . 1 . 1 . . . . . 1 . 1 1 . 1 1 Garrison Access 9 | . . . . 1 . . 1 . . . 2 1 . . . . 2 . . . . . . . 1 1 . . . Network Hub 1 | . . . . . . . . . . . 1 . . . . . . . . . . . . . . . . . . Machines Repaired . | . . . . . . . . . . . . . . . . . . . . . . . . . . . . . . Machines Dismantled 1 | . . . . . . . . . . . . . . . 1 . . . . . . . . . . . . . . Machines Sabotaged 1 | . . . . . . . . . . . 1 . . . . . . . . . . . . . . . . . . Overloaded Fab Kills . | . . . . . . . . . . . . . . . . . . . . . . . . . . . . . . Hacking | -11 -10 -10 -9 -9 -9 -9 -6 -6 -6 -6 -6 -5 -5 -5 -5 -4 -4 -4 -4 -4 -3 -3 -3 -2 -2 -2 -1 -1 -1 --------- Run | Yrd Mat Min Mat Sto Rec Scr Fac Ext Cet Arc Hub Fac Upp Upp War Pro Fac Upp Upp Zhi Pro Res Tes Res Qua Frg Acc Com Ac0 Machines Accessed 151 | . 7 . 15 13 12 4 10 11 . . 7 12 1 1 4 . 11 1 1 4 . 1 6 4 8 8 4 4 2 Terminals 75 | . 6 . 11 8 5 . 3 10 . . 5 5 . . . . 3 . . . . . 4 1 6 . 4 4 . Fabricators 7 | . . . . . . . 2 . . . . 1 . . . . 1 . . . . . . . . 3 . . . Repair Stations 6 | . . . 2 2 . . . . . . . 2 . . . . . . . . . . . . . . . . . Recycling Units 25 | . 1 . . 2 7 . 3 1 . . . 2 . . . . 4 . . . . . . 2 . 3 . . . Scanalyzers 10 | . . . 2 . . . 1 . . . . 1 . . . . 1 . . . . . 2 1 1 1 . . . Garrison Access 10 | . . . . 1 . . 1 . . . 2 1 . . . . 2 . . . . 1 . . 1 1 . . . Total Hacks 389 | . 24 . 48 32 21 27 21 20 . . 14 28 1 1 13 . 23 1 1 17 . 4 18 6 14 17 12 8 18 Successful 268 | . 13 . 34 19 13 27 9 13 . . 8 20 1 1 13 . 13 1 1 17 . . 12 5 9 11 7 3 18 Failed 120 | . 11 . 14 13 8 . 12 7 . . 6 7 . . . . 10 . . . . 4 6 1 5 6 5 5 . Catastrophic 12 | . . . 1 2 . . 2 . . . 1 1 . . . . . . . . . 1 . . 1 1 1 1 . Database Lockouts 1 | . . . . . . . . . . . . 1 . . . . . . . . . . . . . . . . . Manual 154 | . 12 . 16 19 17 . 14 8 1 . 9 10 . . . . 7 . . . . . 9 3 12 7 3 7 . Terminals 191 | . 22 . 32 18 12 . 7 19 . . 11 15 . . . . 9 . . . . . 12 2 12 . 12 8 . Fabricators 17 | . . . . . . . 4 . . . . 2 . . . . 2 . . . . . . . . 9 . . . Repair Stations 24 | . . . 12 7 . . . . . . . 5 . . . . . . . . . . . . . . . . . Recycling Units 40 | . 2 . . 5 9 . 7 1 . . . 3 . . . . 6 . . . . . . 3 . 4 . . . Scanalyzers 18 | . . . 4 . . . 2 . . . . 2 . . . . 1 . . . . . 6 1 1 1 . . . Garrison Access 20 | . . . . 2 . . 1 . . . 3 1 . . . . 5 . . . . 4 . . 1 3 . . . Terminal Hacks 144 | . 4 . 12 4 . 27 3 11 . . 5 6 1 1 13 . 4 1 1 17 . . 6 1 2 . 6 1 18 Record 47 | . . . . . . 26 . . . . . . . . . . . . . 5 . . . . . . . . 16 Part Schematic 4 | . . . . . . . . . . . . . . . . . . . . 4 . . . . . . . . . Robot Analysis 7 | . . . 2 1 . . . . . . . . . . . . . . . 4 . . . . . . . . . Prototype ID Bank 22 | . 2 . 3 . . . 1 . . . . . . . 11 . . . . 4 . . 1 . . . . . . Open Door 18 | . . . . 2 . 1 1 6 . . . . 1 1 2 . . 1 1 . . . . . . . 2 . . Level Access Points 1 | . . . . . . . . . . . 1 . . . . . . . . . . . . . . . . . . Branch Access Points 4 | . . . . . . . . . . . . 1 . . . . 1 . . . . . . 1 . . 1 . . Unreport Threat 4 | . . . 2 . . . . . . . . 1 . . . . . . . . . . . . . . 1 . . Locate Traps 12 | . 2 . 3 . . . 1 1 . . 1 2 . . . . 1 . . . . . 1 . . . . . . Recall Investigation 1 | . . . . . . . . 1 . . . . . . . . . . . . . . . . . . . . . Recall Extermination 2 | . . . . . . . . . . . . 1 . . . . 1 . . . . . . . . . . . . Recall Reinforcements 1 | . . . . . . . . 1 . . . . . . . . . . . . . . . . . . . . . Hauler Manifests 1 | . . . 1 . . . . . . . . . . . . . . . . . . . . . . . . . . Zone Layout 17 | . . . 1 1 . . . 2 . . 3 1 . . . . 1 . . . . . 4 . 2 . 2 . . Disengage Seal 1 | . . . . . . . . . . . . . . . . . . . . . . . . . . . . 1 . Gate Test 138-A 1 | . . . . . . . . . . . . . . . . . . . . . . . . . . . . . 1 Gate Test 138-B 1 | . . . . . . . . . . . . . . . . . . . . . . . . . . . . . 1 Fabricator Hacks 4 | . . . . . . . 1 . . . . 1 . . . . 1 . . . . . . . . 1 . . . Network Status 3 | . . . . . . . 1 . . . . 1 . . . . 1 . . . . . . . . . . . . Build 1 | . . . . . . . . . . . . . . . . . . . . . . . . . . 1 . . . Repair Station Hacks 17 | . . . 10 5 . . . . . . . 2 . . . . . . . . . . . . . . . . . Scan Component 9 | . . . 5 3 . . . . . . . 1 . . . . . . . . . . . . . . . . . Repair 8 | . . . 5 2 . . . . . . . 1 . . . . . . . . . . . . . . . . . Recycling Unit Hacks 12 | . 1 . . 2 3 . . 1 . . . 1 . . . . 1 . . . . . . 1 . 2 . . . Retrieve Components 12 | . 1 . . 2 3 . . 1 . . . 1 . . . . 1 . . . . . . 1 . 2 . . . Scanalyzer 12 | . . . 4 . . . . . . . . 1 . . . . 1 . . . . . 3 1 1 1 . . . Insert Component 1 | . . . . . . . . . . . . . . . . . . . . . . . . . 1 . . . . Retrieve Study 11 | . . . 4 . . . . . . . . 1 . . . . 1 . . . . . 3 1 . 1 . . . Garrison Access Hacks 9 | . . . . 1 . . 1 . . . 2 1 . . . . 2 . . . . . . . 1 1 . . . Seal Access 9 | . . . . 1 . . 1 . . . 2 1 . . . . 2 . . . . . . . 1 1 . . . Unauthorized Hacks 70 | . 8 . 8 7 10 . 4 1 . . 1 8 . . . . 4 . . . . . 3 2 5 6 1 2 . Terminals 47 | . 8 . 8 7 6 . 1 1 . . 1 4 . . . . . . . . . . 3 . 5 . 1 2 . Track 3 | . . . . . . . . . . . . . . . . . . . . . . . 1 . 2 . . . . Assimilate 7 | . . . . . . . 1 . . . . 1 . . . . . . . . . . . . 2 . 1 2 . Botnet 13 | . 2 . 2 2 2 . . 1 . . . 2 . . . . . . . . . . 1 . 1 . . . . Detonate 1 | . . . . . . . . . . . . . . . . . . . . . . . 1 . . . . . . Skim 22 | . 6 . 6 5 4 . . . . . . 1 . . . . . . . . . . . . . . . . . Sabotage 1 | . . . . . . . . . . . 1 . . . . . . . . . . . . . . . . . . Fabricators 7 | . . . . . . . 1 . . . . 1 . . . . . . . . . . . . . 5 . . . Liberate 2 | . . . . . . . . . . . . . . . . . . . . . . . . . . 2 . . . Fabnet 5 | . . . . . . . 1 . . . . 1 . . . . . . . . . . . . . 3 . . . Repair Stations 1 | . . . . . . . . . . . . 1 . . . . . . . . . . . . . . . . . Patch 1 | . . . . . . . . . . . . 1 . . . . . . . . . . . . . . . . . Recycling Units 15 | . . . . . 4 . 2 . . . . 2 . . . . 4 . . . . . . 2 . 1 . . . Tunnel 4 | . . . . . 4 . . . . . . . . . . . . . . . . . . . . . . . . Fedlink 11 | . . . . . . . 2 . . . . 2 . . . . 4 . . . . . . 2 . 1 . . . Scanalyzers . | . . . . . . . . . . . . . . . . . . . . . . . . . . . . . . Garrison Access . | . . . . . . . . . . . . . . . . . . . . . . . . . . . . . . Data Cores Recovered . | . . . . . . . . . . . . . . . . . . . . . . . . . . . . . . Used . | . . . . . . . . . . . . . . . . . . . . . . . . . . . . . . Hacking Detections 83 | . 6 . 13 8 5 . 5 6 . . 5 5 . . . . 5 . . . . 1 4 2 7 6 2 3 . Full Trace Events 4 | . 1 . . . 1 . 1 . . . . . . . . . . . . . . . . . . 1 . . . Feedback Events 2 | . . . . . 1 . . . . . . . . . . . . . . . . . . . . 1 . . . Corruption 1 | . . . . . 1 . . . . . . . . . . . . . . . . . . . . . . . . Hackware Fried 1 | . . . . . . . . . . . . . . . . . . . . . . . . . . 1 . . . Feedback Blocked . | . . . . . . . . . . . . . . . . . . . . . . . . . . . . . . Robot Schematics Acquired 4 | . . . . . . . . . . . . . . . . . . . . . . . . . . 4 . . . Robots Built 3 | . . . . . . . . . . . . . . . . . . . . . . . . . . 3 . . . Authchips . | . . . . . . . . . . . . . . . . . . . . . . . . . . . . . . Time 68 | . . . . . . . . . . . . . . . . . . . . . . . . . . 68 . . . Total Robot Build Rating 24 | . . . . . . . . . . . . . . . . . . . . . . . . . . 24 . . . Part Schematics Acquired 21 | . . . . . . . . . . . . . . . . . . . . 4 . . . . . 17 . . . Parts Built . | . . . . . . . . . . . . . . . . . . . . . . . . . . . . . . Authchips . | . . . . . . . . . . . . . . . . . . . . . . . . . . . . . . Time . | . . . . . . . . . . . . . . . . . . . . . . . . . . . . . . Total Part Build Rating . | . . . . . . . . . . . . . . . . . . . . . . . . . . . . . . Part Studies Acquired 11 | . . . 4 . . . . . . . . 1 . . . . 1 . . . . . 3 1 . 1 . . . Parts Repaired 8 | . . . 5 2 . . . . . . . 1 . . . . . . . . . . . . . . . . . Time 249 | . . . 160 64 . . . . . . . 25 . . . . . . . . . . . . . . . . . Parts Recycled . | . . . . . . . . . . . . . . . . . . . . . . . . . . . . . . Recycled Matter . | . . . . . . . . . . . . . . . . . . . . . . . . . . . . . . Retrieved Matter . | . . . . . . . . . . . . . . . . . . . . . . . . . . . . . . Retrieved Components 42 | . . . . 10 24 . . 2 . . . . . . . . 2 . . . . . . 2 . 2 . . . Parts Scanalyzed . | . . . . . . . . . . . . . . . . . . . . . . . . . . . . . . Part Schematics Acquired . | . . . . . . . . . . . . . . . . . . . . . . . . . . . . . . Parts Damaged . | . . . . . . . . . . . . . . . . . . . . . . . . . . . . . . Bothacking | -11 -10 -10 -9 -9 -9 -9 -6 -6 -6 -6 -6 -5 -5 -5 -5 -4 -4 -4 -4 -4 -3 -3 -3 -2 -2 -2 -1 -1 -1 ------------ Run | Yrd Mat Min Mat Sto Rec Scr Fac Ext Cet Arc Hub Fac Upp Upp War Pro Fac Upp Upp Zhi Pro Res Tes Res Qua Frg Acc Com Ac0 Used RIF Installer . | . . . . . . . . . . . . . . . . . . . . . . . . . . . . . . Robots Hacked 28 | . . . . . . . . . . . . . . . . 2 1 . . . . . 1 . . . . 24 . Non-combat . | . . . . . . . . . . . . . . . . . . . . . . . . . . . . . . Combat 28 | . . . . . . . . . . . . . . . . 2 1 . . . . . 1 . . . . 24 . Robot Hacks Applied . | . . . . . . . . . . . . . . . . . . . . . . . . . . . . . . Relay Couplers Released 2 | . . . . . . . . . . . 2 . . . . . . . . . . . . . . . . . . Machine Destruction 2 | . . . . . . . . . . . 2 . . . . . . . . . . . . . . . . . . Fabnet Peak Effective % 9 | . . . . . . . . . . . . 3 3 3 3 4 4 4 4 4 1 1 1 . . . 9 9 9 Autooverrided 28 | . . . . . . . . . . . . . . . . 2 1 . . . . . 1 . . . . 24 . Robots Rewired 6 | . . . . . . . . 6 . . . . . . . . . . . . . . . . . . . . . Allies Hacked 4 | . . . . . . . . . . . . . . . . . . . . . . . . . . 1 . 3 . Hacks Repelled . | . . . . . . . . . . . . . . . . . . . . . . . . . . . . . . Allies | -11 -10 -10 -9 -9 -9 -9 -6 -6 -6 -6 -6 -5 -5 -5 -5 -4 -4 -4 -4 -4 -3 -3 -3 -2 -2 -2 -1 -1 -1 -------- Run | Yrd Mat Min Mat Sto Rec Scr Fac Ext Cet Arc Hub Fac Upp Upp War Pro Fac Upp Upp Zhi Pro Res Tes Res Qua Frg Acc Com Ac0 Total Allies 61 | . . 2 . 10 . . 1 12 1 . . . . . . 2 1 . . . . . 1 . 2 3 . 26 . Largest Group 22 | . . 2 1 10 9 . 1 7 4 . . . . . . 1 . . . . . . 1 . 2 3 . 22 . Highest-Rated Group 1356 | . . 42 31 88 79 . 10 241 230 . . . . . . 48 . . . . . . 47 . 71 126 . 1356 . Highest-Rated Ally 159 | . . 31 31 16 16 . 10 159 159 . . . . . . 48 . . . . . . 47 . 45 42 . 89 . Total Orders 4 | . . . . . 3 . . . . . . . . . . . . . . . . . . . . . . 1 . STAY 4 | . . . . . 3 . . . . . . . . . . . . . . . . . . . . . . 1 . Ally Attacks 308 | . . . 13 7 21 . . 129 34 . . . . . . 1 1 . . . . . 4 . . 4 . 94 . Total Damage 9356 | . . . 210 74 173 . . 2419 1254 . . . . . . 39 18 . . . . . 77 . . 54 . 5038 . Kills 58 | . . . 4 2 5 . . 17 2 . . . . . . . . . . . . . . . . . . 28 . Allies Corrupted 4 | . . . . . . . . . . . . . . . . . . . . . . . . . . 1 . 3 . Allies Melted 3 | . . . . . . . . . . . . . . . . . . . . . . . . . . 2 . 1 . Intel | -11 -10 -10 -9 -9 -9 -9 -6 -6 -6 -6 -6 -5 -5 -5 -5 -4 -4 -4 -4 -4 -3 -3 -3 -2 -2 -2 -1 -1 -1 ------- Run | Yrd Mat Min Mat Sto Rec Scr Fac Ext Cet Arc Hub Fac Upp Upp War Pro Fac Upp Upp Zhi Pro Res Tes Res Qua Frg Acc Com Ac0 Active Infowar (turns) 13148 | 11 509 . . . . . 717 809 . . 147 485 66 99 175 131 514 111 89 132 232 201 308 257 246 4586 179 1670 1474 Optics 10939 | . . . . . . . . . . . . 469 66 99 175 131 514 111 89 132 232 201 308 257 246 4586 179 1670 1474 Sensors 4211 | . . . . . . . 716 360 . . 134 482 66 99 175 44 390 111 89 132 232 171 308 257 246 199 . . . Structural 4219 | . . . . . . . 717 516 . . 127 451 66 99 175 63 514 111 89 132 232 123 . 203 246 355 . . . Seismic 520 | 11 509 . . . . . . . . . . . . . . . . . . . . . . . . . . . . Cloaking 2290 | . . . . . . . . . . . . . . . . . . . . . . . . . . 1939 179 172 . Jamming 1067 | . . . . . . . . . . . . . . . . . . . . . . . . 256 246 565 . . . ECM 2 | . . . . . . . . . . . . . . . . . . . . . . . . . . 2 . . . Robot Analysis Total 6 | . . . 2 . . . . . . . . . . . . . . . . 4 . . . . . . . . . Derelict Logs Recovered 4 | . . 2 . . . . . . . . . . . 1 . . . . 1 . . . . . . . . . . Drone Launches . | . . . . . . . . . . . . . . . . . . . . . . . . . . . . . . Drone Recoveries . | . . . . . . . . . . . . . . . . . . . . . . . . . . . . . . Exploration | -11 -10 -10 -9 -9 -9 -9 -6 -6 -6 -6 -6 -5 -5 -5 -5 -4 -4 -4 -4 -4 -3 -3 -3 -2 -2 -2 -1 -1 -1 ------------- Run | Yrd Mat Min Mat Sto Rec Scr Fac Ext Cet Arc Hub Fac Upp Upp War Pro Fac Upp Upp Zhi Pro Res Tes Res Qua Frg Acc Com Ac0 Turns Passed 23757 | 178 1437 828 2728 1870 1857 1906 724 964 139 23 147 485 66 99 175 131 514 111 89 132 232 201 308 257 246 4586 179 1670 1475 Spaces Moved 28844 | 97 763 440 1154 752 1075 1679 1721 971 157 27 432 1325 263 336 565 293 1404 346 315 256 583 578 839 737 820 5884 401 1673 2958 Core 7 | 5 . . . . . 2 . . . . . . . . . . . . . . . . . . . . . . . Treads 2081 | . . 96 1154 752 79 . . . . . . . . . . . . . . . . . . . . . . . . Legs 1199 | 92 763 344 . . . . . . . . . . . . . . . . . . . . . . . . . . . Wheels 2542 | . . . . . 996 1546 . . . . . . . . . . . . . . . . . . . . . . . Hover 6280 | . . . . . . . . . . . . . . . . . . . . . . . . . . 1248 401 1673 2958 Flight 16735 | . . . . . . 131 1721 971 157 27 432 1325 263 336 565 293 1404 346 315 256 583 578 839 737 820 4636 . . . Fastest Speed 8 | 50 120 160 160 200 115 34 27 27 27 27 27 23 23 23 23 16 16 16 16 19 22 11 20 12 12 8 32 31 20 Average Speed 52 | 116 159 183 183 200 163 108 28 27 27 27 27 23 23 23 23 21 23 22 22 22 22 19 20 20 20 24 32 31 29 Slowest Speed 200 | 120 190 190 200 200 200 115 98 27 27 27 27 34 23 23 23 23 97 23 23 23 22 23 20 24 21 183 32 96 102 Overloaded Moves 261 | . . . . . . . . . . . . . . . . 42 4 12 5 . . 44 . 54 12 88 . . . Propulsion Burnouts . | . . . . . . . . . . . . . . . . . . . . . . . . . . . . . . Robots Hopped 61 | . . . . . . . 7 3 . . 5 3 . . 1 1 11 1 . . . 13 2 7 2 5 . . . Potential Cave-ins . | . . . . . . . . . . . . . . . . . . . . . . . . . . . . . . Cave-ins Triggered . | . . . . . . . . . . . . . . . . . . . . . . . . . . . . . . Teleports 4 | . . . . . . . . . . . . . . . . . . . . . . . . . . 2 . 1 1 Exploration Rate (%) 63 | 6 91 96 95 93 97 89 47 85 49 56 49 38 50 61 91 48 51 65 63 63 69 27 89 25 89 65 17 45 95 Regions Visited 29 Branch Regions 21 Pre-discovered Areas 22 | . 2 1 1 2 4 7 1 . . . . . . 1 . . . . . 3 . . . . . . . . . Known Exits Taken 23 | . . . . 1 1 . 1 1 1 1 1 1 1 1 1 1 1 1 1 1 1 1 1 1 1 1 1 . . Unknown Exits Taken 6 | 1 1 1 1 . . 1 . . . . . . . . . . . . . . . . . . . . . 1 . Scrap Searched 12 | . . 1 . . . 3 . . . . . . 1 2 . . . 2 1 . 2 . . . . . . . . Spaces Dug 205 | . . . 2 2 . . 27 6 . 1 5 19 1 3 . 8 16 4 3 . 8 13 33 18 12 8 11 4 1 Terrain Destroyed 338 | . . . 34 2 . . 39 83 . 1 5 19 1 3 . 9 16 4 3 . 8 13 33 18 12 13 11 10 1 Melee 158 | . . . 2 2 . . 19 5 . 1 3 18 1 . . 4 14 2 . . 4 11 21 17 12 8 9 4 1 Projectile 54 | . . . . . . . 9 1 . . 2 1 . 3 . 5 2 2 3 . 4 2 12 1 . 5 2 . . AOE 126 | . . . 32 . . . 11 77 . . . . . . . . . . . . . . . . . . . 6 . Terrain Rammed . | . . . . . . . . . . . . . . . . . . . . . . . . . . . . . . Walls Destroyed . | . . . . . . . . . . . . . . . . . . . . . . . . . . . . . . Machines Disabled . | . . . . . . . . . . . . . . . . . . . . . . . . . . . . . . Actions | -11 -10 -10 -9 -9 -9 -9 -6 -6 -6 -6 -6 -5 -5 -5 -5 -4 -4 -4 -4 -4 -3 -3 -3 -2 -2 -2 -1 -1 -1 --------- Run | Yrd Mat Min Mat Sto Rec Scr Fac Ext Cet Arc Hub Fac Upp Upp War Pro Fac Upp Upp Zhi Pro Res Tes Res Qua Frg Acc Com Ac0 Total 36116 | 130 901 455 1580 980 1144 1764 1894 1634 252 34 445 1444 267 354 593 340 1549 371 328 303 661 624 923 807 866 8750 421 2764 3538 Wait 4803 | 8 64 1 241 104 18 42 68 543 96 . . 67 . 14 14 21 110 21 8 . 50 4 19 44 29 2143 . 883 191 Move 28703 | 96 762 439 1153 751 1074 1678 1706 964 156 26 423 1318 262 335 562 290 1384 343 314 255 582 554 834 724 815 5874 400 1672 2957 Hop 48 | . . . . . . . 7 3 . . 3 3 . . 1 1 8 1 . . . 10 2 5 2 2 . . . Pick Up 283 | 5 10 3 26 4 5 23 4 7 . . . 4 2 . 3 . 4 . 1 5 1 5 2 3 1 130 1 17 17 Fast Attach 149 | 7 4 . 9 1 1 7 6 2 . . 1 5 . . 1 . 5 . . 10 . 6 3 3 2 47 . 16 13 Attach 204 | . . . 2 2 4 2 24 9 . 1 5 6 . 1 1 8 5 1 1 1 4 9 8 4 . 63 2 18 23 Detach 137 | . . . . . . . 15 7 . 1 4 3 . 1 . 4 5 1 1 . 3 6 10 2 . 53 . 14 7 Swap 124 | . 1 3 17 19 3 . 1 . . . . . . . . 1 1 . . . . 1 2 . . 43 4 13 15 Drop 276 | . 9 4 17 13 15 12 12 5 . . . 3 2 . 3 . 2 . . 13 1 6 1 3 2 135 . 11 7 Fire 443 | 14 50 4 113 80 11 . 27 22 . 3 2 2 . 3 . 7 3 2 3 . 4 2 14 1 . 64 1 11 . Melee 799 | . . . 2 3 13 . 24 12 . 3 7 33 1 . . 8 22 2 . 19 16 21 28 18 15 123 13 109 307 Ram . | . . . . . . . . . . . . . . . . . . . . . . . . . . . . . . Kick 2 | . 1 1 . . . . . . . . . . . . . . . . . . . . . . . . . . . Crush 3 | . . . . 3 . . . . . . . . . . . . . . . . . . . . . . . . . Escape Stasis 103 | . . . . . . . . 30 . . . . . . . . . . . . . . . . . 73 . . . Rewire 31 | . . . . . . . . 30 . . . . . . . . . . . . . . . . . . . . 1 Trap . | . . . . . . . . . . . . . . . . . . . . . . . . . . . . . . Miscellaneous 8 | . . . . . . . . . . . . . . . 8 . . . . . . . . . . . . . . Route ------- -11/Scrapyard -10/Materials (discovered 4 exits: *Mat x3 / [*Min]) -10/Mines (discovered 2 exits: *Mat x2) -9/Materials (discovered 5 exits: *Mat x3 / [*Min] / *Sto) -9/Storage (discovered 2 exits: Mat / *Rec) -9/Recycling (discovered 2 exits: [*Fac] / *Scr) -9/Scraptown (discovered 2 exits: *Fac x2) -6/Factory (discovered 7 exits: *Fac x4 / *Low x2 / *Ext) -6/Extension (discovered 2 exits: *Fac / *Cet) -6/Cetus -6/Archives -6/Hub_04(d) (discovered 4 exits: *Fac x4) -5/Factory (discovered 2 exits: *Upp x2) -5/Upper Caves -5/Upper Caves (discovered 2 exits: Fac / *War) -5/Warlord -4/Proximity Caves -4/Factory (discovered 5 exits: *Res x2 / *Upp x2 / Arm) -4/Upper Caves -4/Upper Caves -4/Zhirov -3/Proximity Caves -3/Research (discovered 2 exits: Res / *Tes) -3/Testing -2/Research (discovered 3 exits: Acc / *Qua x2) -2/Quarantine (discovered 3 exits: *Acc / [*Sec] / *Frg) -2/Protoforge -1/Access -1/Command (discovered 3 exits: [*Sur x2] / *Ac0) -1/Access_0 0b11 Command History --------- Turn | Location | Event 7 | -11/Scrapyard | Discovered new exit (range 16) 179 | -11/Scrapyard | Entered Materials 303 | -10/Materials | Build established: Mutant 509 | -10/Materials | Discovered new exit (range 9) 651 | -10/Materials | Discovered new exit (range 5) 735 | -10/Materials | Discovered new exit (range 8) 890 | -10/Materials | Learned location of Subcaves (-10) 1513 | -10/Materials | Discovered new exit (range 16) 1616 | -10/Materials | Entered Mines 1617 | -10/Mines | Learned location of Storage (-9) 1748 | -10/Mines | Found a hidden stash of uninstalled traps 1888 | -10/Mines | Found a Scrap Suit stashed away for nefarious purposes 2025 | -10/Mines | A weapon hastily lodged in a ceiling crevice suddenly fell to the ground 2068 | -10/Mines | Discovered new exit (range 16) 2148 | -10/Mines | Learned Materials garrison access intel 2266 | -10/Mines | Discovered new exit (range 15) 2275 | -10/Mines | Received a Rocket Launcher from a helpful Derelict 2444 | -10/Mines | Entered Materials 2444 | -9/Materials | Accompanied by 1 ally 2444 | -9/Materials | Evolved 2 slots: Propulsion x1, Weapon x1 2449 | -9/Materials | Led the pair of lost Derelicts to an unsafe place 2671 | -9/Materials | Discovered new exit (range 13) 2696 | -9/Materials | Discovered new exit (range 16) 2743 | -9/Materials | Build established: Tank 3010 | -9/Materials | Discovered new exit (range 8) 3411 | -9/Materials | Repaired Autogun 3444 | -9/Materials | Repaired Autogun 3539 | -9/Materials | Learned location of 1 exit from Recycling 3892 | -9/Materials | Discovered new exit (range 16) 4419 | -9/Materials | Repaired Med. Armor Plating 4452 | -9/Materials | Repaired Autogun+ 4486 | -9/Materials | Repaired Autogun+ 4573 | -9/Materials | Learned 2 Storage zone layouts 4641 | -9/Materials | Identified exit to Materials 4662 | -9/Materials | Learned Storage emergency access door positions 4706 | -9/Materials | Learned Storage trap positions 5172 | -9/Materials | Entered Storage 5173 | -9/Storage | Identified exit to Recycling 5175 | -9/Storage | Loaded intel: 23 trap records 5293 | -9/Storage | Garrison activated, responded to threat 5499 | -9/Storage | Repaired Med. Armor Plating 5532 | -9/Storage | Repaired Med. Armor Plating 5597 | -9/Storage | Garrison activated, responded to threat 6139 | -9/Storage | Assisted by bots powering up and referring to "LRC-V3" 6267 | -9/Storage | Learned Materials garrison access intel 6348 | -9/Storage | Loaded intel: 14 terminal locations 6417 | -9/Storage | Learned location of 1 exit from Storage 6430 | -9/Storage | Build established: Commander-Tank 6568 | -9/Storage | Learned 2 Materials zone layouts 6621 | -9/Storage | Learned location of Zion (-6) 6761 | -9/Storage | Learned location of 1 exit from Storage 7023 | -9/Storage | Used back door to open Recycling access 7042 | -9/Storage | Entered Recycling 7042 | -9/Recycling | Accompanied by 9 allies 7043 | -9/Recycling | Identified exit to Scraptown 7327 | -9/Recycling | Discovered new exit (range 5) 8428 | -9/Recycling | Scanned before Scraplab entrance 8726 | -9/Recycling | Build established: Commander-Mutant 8886 | -9/Recycling | Entered Scraplab 8899 | -9/Recycling | Entered Scraptown 8899 | -9/Scraptown | System corruption cleaned by C-Scrubber 9210 | -9/Scraptown | Build established: Scavenger-Mutant 9319 | -9/Scraptown | Heard Great Nut preacher, LISTEN AND RECITE! 9360 | -9/Scraptown | Discovered new exit (range 3) 9432 | -9/Scraptown | Visited Observation Area 9479 | -9/Scraptown | Visited Assassins FH 9517 | -9/Scraptown | Visited Cyclists 9553 | -9/Scraptown | Visited UFD Registry 9553 | -9/Scraptown | Registered with UFD as "Bulletforce" 9577 | -9/Scraptown | Entered Cyclist Reading Room 9582 | -9/Scraptown | Learned location of Exiles (-9) 9658 | -9/Scraptown | Visited Cartography Club 9695 | -9/Scraptown | Visited Research Penetration Think Tank 9779 | -9/Scraptown | Discovered new exit (range 3) 9819 | -9/Scraptown | Visited Derelict Rescue Squad 9829 | -9/Scraptown | Visited Infowarlord's Domain 9837 | -9/Scraptown | Found Exp. Sensor Array 9864 | -9/Scraptown | Visited Supply Room 9885 | -9/Scraptown | Visited Sword Containment 9899 | -9/Scraptown | Visited A0-MCA Data Center 9906 | -9/Scraptown | Given a C rating by A0-MCA 9910 | -9/Scraptown | Found A0-MCA's Component Scanner 9932 | -9/Scraptown | Visited Science Guys 10313 | -9/Scraptown | Found Deep Structural Scanner 10317 | -9/Scraptown | Learned location of Archives (-6) 10317 | -9/Scraptown | Learned location of Testing (-3) 10317 | -9/Scraptown | Learned 12 Materials zone layouts 10317 | -9/Scraptown | Learned 8 Factory zone layouts 10317 | -9/Scraptown | Learned 12 Lower Caves zone layouts 10317 | -9/Scraptown | Learned 12 Factory zone layouts 10317 | -9/Scraptown | Learned 20 Lower Caves zone layouts 10317 | -9/Scraptown | Learned 8 Upper Caves zone layouts 10317 | -9/Scraptown | Learned 20 Upper Caves zone layouts 10317 | -9/Scraptown | Learned 4 Armory zone layouts 10317 | -9/Scraptown | Learned location of 3 exits from Factory 10317 | -9/Scraptown | Learned location of 2 exits from Research 10317 | -9/Scraptown | Learned location of 3 exits from Upper Caves 10636 | -9/Scraptown | Found Prototype Slashing Weapon 10636 | -9/Scraptown | Identified Companion Sword 10742 | -9/Scraptown | Met Optimus 10742 | -9/Scraptown | Accepted into 0bPrime 10805 | -9/Scraptown | Entered Factory 10805 | -6/Factory | Evolved 6 slots: Propulsion x2, Utility x4 10806 | -6/Factory | Identified exit to Factory 10807 | -6/Factory | Identified exit to Lower Caves 11002 | -6/Factory | Loaded intel: 8 recycling unit locations 11164 | -6/Factory | Build established: Scout 11470 | -6/Factory | Learned location of Protoforge (-2) 11505 | -6/Factory | Search patrols dispatched 11527 | -6/Factory | Discovered new exit (range 9) 11529 | -6/Factory | Identified exit to Extension 11529 | -6/Factory | Entered Extension 11807 | -6/Extension | Build established: Sprinter 11879 | -6/Extension | Rescued a captive Derelict 11881 | -6/Extension | Rescued a captive Derelict 11903 | -6/Extension | Rescued a captive Derelict 11903 | -6/Extension | Rescued a captive Derelict 12270 | -6/Extension | Spotted B-75 Beast 12294 | -6/Extension | Allies destroyed B-75 Beast 12308 | -6/Extension | Spotted B-75 Beast 12330 | -6/Extension | Rescued a captive Derelict 12345 | -6/Extension | Lost 6 allies 12356 | -6/Extension | Rescued a captive Derelict 12367 | -6/Extension | Rescued a captive Derelict 12377 | -6/Extension | Rescued A7 12447 | -6/Extension | Lost 3 parts (1n1u1w) 12460 | -6/Extension | Discovered exit to Factory (range 10) 12460 | -6/Extension | Discovered new exit (range 6) 12469 | -6/Extension | Identified exit to Cetus 12493 | -6/Extension | Entered Cetus 12493 | -6/Cetus | Accompanied by 4 allies (A7) 12498 | -6/Cetus | Acquired a Cetus Manufacturing Module code from A7 12511 | -6/Cetus | Spotted Cetus Guard 12512 | -6/Cetus | Spotted Cetus Guard 12521 | -6/Cetus | Spotted Cetus Guard 12525 | -6/Cetus | Spotted Cetus Guard 12550 | -6/Cetus | Started Cetus Manufacturing Module 12569 | -6/Cetus | Lost 3 allies 12575 | -6/Cetus | Manufactured an Enhanced Grunt 12576 | -6/Cetus | Cetus Manufacturing Module disabled 12603 | -6/Cetus | Allies destroyed Cetus Guard 12627 | -6/Cetus | Discovered new exit (range 16) 12631 | -6/Cetus | Identified exit to Archives 12632 | -6/Cetus | Entered Archives 12651 | -6/Archives | Discovered new exit (range 13) 12654 | -6/Archives | Identified exit to Hub_04(d) 12655 | -6/Archives | Entered Hub_04(d) 12786 | -6/Hub_04(d) | Network Hub disabled 12802 | -6/Hub_04(d) | Entered Factory 12802 | -5/Factory | Evolved 2 slots: Propulsion x1, Utility x1 12830 | -5/Factory | Lost 3 parts (2p1u) 12840 | -5/Factory | Discovered new exit (range 6) 12840 | -5/Factory | Discovered new exit (range 21) 12842 | -5/Factory | Identified exit to Upper Caves 12937 | -5/Factory | Build established: Scout 13087 | -5/Factory | Central database locked down 13176 | -5/Factory | Repaired Imp. Flight Unit 13189 | -5/Factory | Loaded intel: 8 recycling unit locations 13287 | -5/Factory | Entered Upper Caves 13288 | -5/Upper Caves | Identified exit to Upper Caves 13325 | -5/Upper Caves | Encountered a Warlord checkpoint 13353 | -5/Upper Caves | Entered another Upper Caves area 13353 | -5/Upper Caves | Spotted B-75 Beast 13354 | -5/Upper Caves | Identified exit to Factory 13354 | -5/Upper Caves | Identified exit to Warlord 13384 | -5/Upper Caves | Learned location of Armory (-4) 13405 | -5/Upper Caves | Build established: Hacker-Scout 13452 | -5/Upper Caves | Entered Warlord 13453 | -5/Warlord | Identified exit to Proximity Caves 13525 | -5/Warlord | Found Prototype Hackware 13529 | -5/Warlord | Rebuked by Warlord 13541 | -5/Warlord | Visited the Vortex Lab 13543 | -5/Warlord | Found Prototype Energy Gun 13543 | -5/Warlord | Identified Vortex Rifle 13554 | -5/Warlord | Warlord's base attacked by MAIN.C 13621 | -5/Warlord | Opened side exit 13627 | -5/Warlord | Entered Proximity Caves 13632 | -4/Proximity Caves | Spotter reported a threat 13713 | -4/Proximity Caves | Lost 3 parts (2n1u) 13746 | -4/Proximity Caves | Spotted B-86 Titan 13747 | -4/Proximity Caves | Entered a huge 0b10 base via the front door 13754 | -4/Proximity Caves | Discovered exit to Factory (range 20) 13758 | -4/Proximity Caves | Entered Factory 13758 | -4/Factory | Evolved 2 slots: Propulsion x1, Utility x1 13897 | -4/Factory | Spotted B-86 Titan 13905 | -4/Factory | Loaded intel: 8 recycling unit locations 14078 | -4/Factory | Discovered new exit (range 15) 14087 | -4/Factory | Identified exit to Research 14119 | -4/Factory | Discovered exit to Research (range 12) 14124 | -4/Factory | Noticed UFD Elites at a Recycling Unit 14164 | -4/Factory | Identified exit to Upper Caves 14164 | -4/Factory | Identified exit to Armory 14170 | -4/Factory | Allied Derelicts emerged from ambush trap array 14272 | -4/Factory | Entered Upper Caves 14297 | -4/Upper Caves | Spotted B-86 Titan 14368 | -4/Upper Caves | Discovered new exit (range 5) 14382 | -4/Upper Caves | Identified exit to Upper Caves 14383 | -4/Upper Caves | Entered another Upper Caves area 14393 | -4/Upper Caves | Learned Research garrison access intel 14405 | -4/Upper Caves | Encountered a Warlord checkpoint 14431 | -4/Upper Caves | Discovered new exit (range 14) 14472 | -4/Upper Caves | Identified exit to Zhirov 14472 | -4/Upper Caves | Entered Zhirov 14472 | -4/Zhirov | Discovered new exit (range 3) 14477 | -4/Zhirov | Met Zhirov 14484 | -4/Zhirov | Zhirov requested help retrieving the SGEMP Prototype 14489 | -4/Zhirov | Found Alien Artifact 14489 | -4/Zhirov | Identified Integrated Reactor 14489 | -4/Zhirov | Installed Integrated Reactor, increased core energy generation (+10) 14495 | -4/Zhirov | Found Alien Artifact 14518 | -4/Zhirov | Identified Ghost Barrier 14604 | -4/Zhirov | Identified exit to Proximity Caves 14604 | -4/Zhirov | Entered Proximity Caves 14641 | -3/Proximity Caves | Spotter reported a threat 14714 | -3/Proximity Caves | Spotter reported a threat 14785 | -3/Proximity Caves | Spotter reported a threat 14792 | -3/Proximity Caves | Discovered exit to Research (range 10) 14832 | -3/Proximity Caves | Spotter reported a threat 14836 | -3/Proximity Caves | Entered Research 14836 | -3/Research | Evolved 2 slots: Utility x2 14837 | -3/Research | Identified exit to Research 14837 | -3/Research | Identified exit to Testing 14838 | -3/Research | Loaded intel: 3 garrison access locations 14993 | -3/Research | Spotted B-86 Titan 15014 | -3/Research | Spotted B-86 Titan 15037 | -3/Research | Entered Testing 15099 | -3/Testing | Found Prototype Hackware 15099 | -3/Testing | Identified System Mapper 15224 | -3/Testing | Found Prototype Device 15225 | -3/Testing | Identified Exp. Hardlight Generator 15245 | -3/Testing | Found Quantum Capacitor 15333 | -3/Testing | Discovered exit to Research (range 8) 15338 | -3/Testing | Found Prototype Energy Gun 15338 | -3/Testing | Identified Warp Gun 15345 | -3/Testing | Entered Research 15345 | -2/Research | Evolved 2 slots: Power x1, Propulsion x1 15346 | -2/Research | Identified exit to Access 15392 | -2/Research | Spotted B-90 Cyclops 15480 | -2/Research | Identified exit to Quarantine 15516 | -2/Research | Loaded intel: 5 recycling unit locations 15601 | -2/Research | Spotted B-90 Cyclops 15602 | -2/Research | Entered Quarantine 15624 | -2/Quarantine | Build established: Hacker-Ninja 15668 | -2/Quarantine | Found Alien Artifact 15670 | -2/Quarantine | Discovered exit to Access (range 4) 15719 | -2/Quarantine | Found Alien Slashing Weapon 15719 | -2/Quarantine | Identified Sigix Broadsword 15832 | -2/Quarantine | Spotted Fortress 15847 | -2/Quarantine | Discovered new exit (range 6) 15847 | -2/Quarantine | Discovered new exit (range 6) 15848 | -2/Quarantine | Identified exit to Protoforge 15848 | -2/Quarantine | Entered Protoforge 15849 | -2/Protoforge | Forged Quantum Companion 15927 | -2/Protoforge | Found Prototype Device 15935 | -2/Protoforge | Found Prototype Device 15946 | -2/Protoforge | Spotted EXE-6 15946 | -2/Protoforge | Spotted EXE-6 15953 | -2/Protoforge | UFD initiated attack on Protoforge (Readiness: Adequate) 15953 | -2/Protoforge | Loaded intel: 3 recycling unit locations 15973 | -2/Protoforge | Superfortress began startup sequence 15989 | -2/Protoforge | Optimus greeted in Protoforge 16001 | -2/Protoforge | Spotted SKR-2 16001 | -2/Protoforge | Spotted SKR-2 16024 | -2/Protoforge | Spotted EXE-6 16024 | -2/Protoforge | Spotted EXE-6 16039 | -2/Protoforge | Found Prototype Ballistic Gun 16041 | -2/Protoforge | Found Prototype Ballistic Gun 16046 | -2/Protoforge | Found Prototype Processor 16046 | -2/Protoforge | Identified Exp. Core Analyzer 16051 | -2/Protoforge | Identified Cep. XC Strikerail (x2) 16063 | -2/Protoforge | Lost 5 allies 16091 | -2/Protoforge | Found Exp. Core Analyzer 16097 | -2/Protoforge | Found Prototype Processor 16097 | -2/Protoforge | Identified Exp. Armor Integrity Analyzer 16110 | -2/Protoforge | Spotted AP7-3 16118 | -2/Protoforge | Lost 3 allies 16130 | -2/Protoforge | System Mapper fried by hacking feedback 16158 | -2/Protoforge | Identified Transdimensional Reconstructor 16158 | -2/Protoforge | Identified Exp. Trap Extractor 16158 | -2/Protoforge | Forge Plexus network access discovered 16167 | -2/Protoforge | Found Exp. Armor Integrity Analyzer 16175 | -2/Protoforge | Spotted Striker 16196 | -2/Protoforge | Fabricated B-74 Champion? 16256 | -2/Protoforge | P-80 Master assimilated allied Champion 9c 16290 | -2/Protoforge | Found Exp. Melee Analysis Suite 16299 | -2/Protoforge | Spotted Striker 16311 | -2/Protoforge | Build established: Scavenger-Sprinter 16318 | -2/Protoforge | Spotted Striker 16353 | -2/Protoforge | Lost 4 allies 16505 | -2/Protoforge | Spotted Immortal 16505 | -2/Protoforge | Spotted Immortal 16526 | -2/Protoforge | Spotted Decapitator 16544 | -2/Protoforge | Destroyed Immortal 16568 | -2/Protoforge | Destroyed Immortal 16583 | -2/Protoforge | Found Exp. Jetlance 16585 | -2/Protoforge | Found Exp. Melee Analysis Suite 16587 | -2/Protoforge | Found Prototype Device 16587 | -2/Protoforge | Identified Cep. Antimissile System (x2) 16596 | -2/Protoforge | Found Exp. Jetlance 16635 | -2/Protoforge | Found Faulty Exp. Terror Saw 16638 | -2/Protoforge | Found Exp. Terror Saw 16639 | -2/Protoforge | Found Faulty Cep. Variable Chargecaster 16643 | -2/Protoforge | Found Cep. Variable Chargecaster 16644 | -2/Protoforge | Found Faulty Cep. Variable Chargecaster 16677 | -2/Protoforge | Found Cep. Antigrav Storage Unit 16695 | -2/Protoforge | Found Crosscalibrator 16697 | -2/Protoforge | UFD reported confirmed Drillbomb installation 16737 | -2/Protoforge | Spotted Decapitator 16737 | -2/Protoforge | Spotted Decapitator 16737 | -2/Protoforge | Spotted Decapitator 16760 | -2/Protoforge | Destroyed Decapitator 16766 | -2/Protoforge | Destroyed Decapitator 16769 | -2/Protoforge | Destroyed Decapitator 16800 | -2/Protoforge | Found Cep. EMP Blanket Launcher 17058 | -2/Protoforge | Spotted AP7-3 17058 | -2/Protoforge | Spotted AP7-3 17085 | -2/Protoforge | Destroyed AP7-3 17092 | -2/Protoforge | Destroyed AP7-3 17100 | -2/Protoforge | Found Cep. Thermoelectric Network 17101 | -2/Protoforge | Found Cep. Cloak Mesh 17102 | -2/Protoforge | Found Cep. Thermoelectric Network 17104 | -2/Protoforge | Found Faulty Cep. Cloak Mesh 17105 | -2/Protoforge | Found Cep. Core Analysis Suite 17218 | -2/Protoforge | Found Cep. XC Strikerail 17219 | -2/Protoforge | Found Cep. XC Strikerail 17221 | -2/Protoforge | Found Prototype Device 17221 | -2/Protoforge | Identified Exp. ECM Suite 17224 | -2/Protoforge | Found Prototype Processor 17224 | -2/Protoforge | Identified Exp. Target Analyzer 17226 | -2/Protoforge | Found Prototype Processor 17226 | -2/Protoforge | Identified Exp. Targeting Computer 17304 | -2/Protoforge | Additional patrols dispatched to research labs 17307 | -2/Protoforge | Found Cep. Navigation Harness 17313 | -2/Protoforge | Found Transdimensional Reconstructor 17522 | -2/Protoforge | Spotted V767-a 17523 | -2/Protoforge | Spotted V087-d 17549 | -2/Protoforge | Core integrity fell below 50% 17550 | -2/Protoforge | Destroyed V767-a 17564 | -2/Protoforge | Destroyed V087-d 17570 | -2/Protoforge | Found Cep. Network Penetrator 17578 | -2/Protoforge | Lost 4 parts (1p2n1u) 17579 | -2/Protoforge | Spotted V093-c 17580 | -2/Protoforge | Found Cep. Network Penetrator 17593 | -2/Protoforge | Destroyed V093-c 17622 | -2/Protoforge | Lost 3 parts (1p2n) 17628 | -2/Protoforge | Found Cep. Combat Aerolev Unit 17651 | -2/Protoforge | Found Prototype Device 17651 | -2/Protoforge | Identified Exp. Weapon Cycler 17654 | -2/Protoforge | Found Cep. Plasma Driver 17781 | -2/Protoforge | Found Cep. Rapid Grenade Launcher 17794 | -2/Protoforge | Build established: Scavenger-Gladiator 17816 | -2/Protoforge | Spotted Immortal 17816 | -2/Protoforge | Spotted Immortal 17917 | -2/Protoforge | Destroyed Immortal 18005 | -2/Protoforge | Destroyed Immortal 18044 | -2/Protoforge | Found Faulty Cep. Gyrokinetic System 18156 | -2/Protoforge | UFD reported confirmed Drillbomb installation 18186 | -2/Protoforge | Found Faulty Cep. Gyrokinetic System 18439 | -2/Protoforge | Found Cep. Fieldthrust Drive 18678 | -2/Protoforge | Found Faulty Cep. Fieldthrust Drive 18772 | -2/Protoforge | Found Cep. Heavy Railcannon 18773 | -2/Protoforge | Found Cep. Lightning Penetrator 18774 | -2/Protoforge | Found Cep. Lightning Penetrator 18802 | -2/Protoforge | Spotted Decapitator 18802 | -2/Protoforge | Spotted Decapitator 18802 | -2/Protoforge | Spotted V584-s 18802 | -2/Protoforge | Spotted V113-o 18802 | -2/Protoforge | Spotted Decapitator 18805 | -2/Protoforge | Scanned by Researcher 18812 | -2/Protoforge | Found Faulty Cep. Beam Splitter 18813 | -2/Protoforge | Found Cep. Energy Mantle 18815 | -2/Protoforge | Found Cep. Core Shell 18816 | -2/Protoforge | Found Faulty Cep. Reaction Jets 18817 | -2/Protoforge | Found Cep. Core Shell 18819 | -2/Protoforge | Found Faulty Cep. Reaction Jets 18824 | -2/Protoforge | Found Cep. Energy Mantle 18825 | -2/Protoforge | Found Faulty Cep. Phase Shift Module 18826 | -2/Protoforge | Found Faulty Cep. Beam Splitter 18827 | -2/Protoforge | Found Cep. Phase Shift Module 18843 | -2/Protoforge | Found Faulty Cep. Miniperforator 18844 | -2/Protoforge | Found Faulty Cep. Lightning Penetrator 18845 | -2/Protoforge | Found Faulty Cep. Helical Railcannon 18966 | -2/Protoforge | Build established: Scavenger-Sprinter 19033 | -2/Protoforge | Found Faulty Cep. Helical Railcannon 19035 | -2/Protoforge | Found Faulty Cep. Variable Chargecaster 19036 | -2/Protoforge | Found Exp. Terror Saw 19037 | -2/Protoforge | Found Cep. Lightning Penetrator 19049 | -2/Protoforge | Destroyed Decapitator 19081 | -2/Protoforge | Found Cep. Weapon Articulator 19083 | -2/Protoforge | Found Exp. Force Booster 19084 | -2/Protoforge | Found Cep. Weapon Articulator 19086 | -2/Protoforge | Found Femtoactuators 19089 | -2/Protoforge | Spotted V257-d 19093 | -2/Protoforge | Destroyed V257-d 19095 | -2/Protoforge | Found Exp. Force Booster 19101 | -2/Protoforge | Found Prototype Device 19101 | -2/Protoforge | Identified Exp. Shield Generator 19123 | -2/Protoforge | Lost 3 parts (2n1u) 19235 | -2/Protoforge | Spotted V250-e 19235 | -2/Protoforge | Spotted V539-f 19235 | -2/Protoforge | Spotted V862-m 19241 | -2/Protoforge | Found Cep. XC Strikerail 19242 | -2/Protoforge | Found Cep. XC Strikerail 19244 | -2/Protoforge | Found Cep. XC Strikerail 19245 | -2/Protoforge | Found Faulty Cep. XC Strikerail 19256 | -2/Protoforge | Found Cep. Chromion Battery 19433 | -2/Protoforge | Spotted V989-y 19436 | -2/Protoforge | Spotted V870-w 19436 | -2/Protoforge | Found Faulty Cep. Zero-point Core 19438 | -2/Protoforge | Spotted V630-d 19443 | -2/Protoforge | Found Cep. Zero-point Core 19455 | -2/Protoforge | Found Faulty Cep. Cloak Mesh 19710 | -2/Protoforge | Destroyed V870-w 19721 | -2/Protoforge | Found Corrupted Cep. Zero-point Core 19740 | -2/Protoforge | Found Cep. Gyrokinetic System 19741 | -2/Protoforge | Found Faulty Cep. Combat Aerolev Unit 19743 | -2/Protoforge | Found Faulty Cep. Gyrokinetic System 19777 | -2/Protoforge | Found Faulty Cep. Combat Aerolev Unit 19990 | -2/Protoforge | Build established: Scavenger-Gladiator 20224 | -2/Protoforge | Found Exp. Jetlance 20226 | -2/Protoforge | Found Exp. Jetlance 20254 | -2/Protoforge | Identified Subatomic Replicator 20254 | -2/Protoforge | Forged Prototype Slashing Weapon 20274 | -2/Protoforge | Found Cep. Plasma Driver 20292 | -2/Protoforge | Found Cep. Weapon Articulator 20301 | -2/Protoforge | Found Cep. Weapon Articulator 20359 | -2/Protoforge | Build established: Scavenger-Sprinter 20385 | -2/Protoforge | Spotted Hotshot 20385 | -2/Protoforge | Spotted Hotshot 20387 | -2/Protoforge | Destroyed Hotshot 20393 | -2/Protoforge | Destroyed Hotshot 20403 | -2/Protoforge | Spotted Executioner 20403 | -2/Protoforge | Spotted Striker 20407 | -2/Protoforge | System corruption reached 10% 20418 | -2/Protoforge | Spotted Striker 20426 | -2/Protoforge | Spotted Striker 20433 | -2/Protoforge | Discovered exit to Access (range 5) 20433 | -2/Protoforge | Spotted Hotshot 20433 | -2/Protoforge | Spotted Hotshot 20434 | -2/Protoforge | Entered Access 20434 | -1/Access | Evolved 2 slots: Power x1, Utility x1 20449 | -1/Access | Found Exp. Core Analyzer 20471 | -1/Access | Identified exit to Command 20512 | -1/Access | Spotted Executioner 20513 | -1/Access | Spotted Executioner 20613 | -1/Access | Entered Command 20674 | -1/Command | Disengaged cave seal 20674 | -1/Command | Wild derelicts emerged from the dark tunnel 20731 | -1/Command | Build established: Hacker-Sprinter 20756 | -1/Command | Spotted M Guard 20756 | -1/Command | Spotted M Guard 20756 | -1/Command | Spotted Combat Programmer 20756 | -1/Command | Spotted Combat Programmer 20796 | -1/Command | Destroyed Combat Programmer 20838 | -1/Command | Destroyed Combat Programmer 20866 | -1/Command | System corruption reached 10% 20868 | -1/Command | Destroyed M Guard 20924 | -1/Command | Destroyed M Guard 20924 | -1/Command | All MAIN.C guards destroyed 20925 | -1/Command | Found Prototype Protection 20928 | -1/Command | Found Prototype Device 20936 | -1/Command | Found Prototype Device 21055 | -1/Command | Identified Thermal Barrier (x2) 21101 | -1/Command | Met MAIN.C 21103 | -1/Command | 0b10 Conduit disabled 21133 | -1/Command | Destroyed MAIN.C Shell 21134 | -1/Command | MAIN.C activated Command garrisons 21158 | -1/Command | Identified Hvy. Regenerative Plating 21171 | -1/Command | Destroyed MAIN.C 21173 | -1/Command | Discovered new exit (range 43) 21173 | -1/Command | Discovered new exit (range 99) 21173 | -1/Command | Extracted map data and part IDs from MAIN.C's data core 21184 | -1/Command | Found Omega Cannon 21192 | -1/Command | Lost 4 parts (4n) 21221 | -1/Command | Spotted B-99 Colossus 21343 | -1/Command | Build established: Scavenger-Sprinter 21362 | -1/Command | Spotted B-99 Colossus 21477 | -1/Command | Destroyed B-99 Colossus 21618 | -1/Command | Found Exp. System Purifier 21822 | -1/Command | Found Zero-point Reactor 21825 | -1/Command | Found Hyp. Multirail 21827 | -1/Command | Found Hvy. Regenerative Plating 22232 | -1/Command | Warped through subspace to slip node 22232 | -1/Command | Discovered new exit (range 5) 22283 | -1/Command | Entered Access_0 22284 | -1/Access_0 | Met Architect 22290 | -1/Access_0 | Architect warped through subspace 22302 | -1/Access_0 | Destroyed A8 22332 | -1/Access_0 | Architect warped through subspace 22340 | -1/Access_0 | Subspace Access Node disabled 22371 | -1/Access_0 | Architect warped through subspace 22398 | -1/Access_0 | A6 warped into view 22428 | -1/Access_0 | Destroyed A6 22442 | -1/Access_0 | Architect warped through subspace 22449 | -1/Access_0 | Lost 3 parts (2u1w) 22461 | -1/Access_0 | Architect warped through subspace 22478 | -1/Access_0 | Found Hpw. Transdimensional Reconstructor 22483 | -1/Access_0 | Architect warped through subspace 22497 | -1/Access_0 | Architect warped through subspace 22515 | -1/Access_0 | Architect warped through subspace 22535 | -1/Access_0 | Architect warped through subspace 22567 | -1/Access_0 | Subspace Access Node disabled 22572 | -1/Access_0 | Architect warped through subspace 22587 | -1/Access_0 | Found Integrated Mediator 22587 | -1/Access_0 | Installed Integrated Mediator, increased core attachment efficiency 22636 | -1/Access_0 | Architect warped through subspace 22657 | -1/Access_0 | Architect warped through subspace 22660 | -1/Access_0 | A5 warped into view 22662 | -1/Access_0 | Subspace Access Node disabled 22674 | -1/Access_0 | Destroyed A5 22680 | -1/Access_0 | Architect warped through subspace 22690 | -1/Access_0 | Architect warped through subspace 22702 | -1/Access_0 | Found Core Expander 22702 | -1/Access_0 | Installed Core Expander, added new Utility slot 22719 | -1/Access_0 | Architect warped through subspace 22741 | -1/Access_0 | Destroyed A2 22743 | -1/Access_0 | Core integrity fell below 50% 22745 | -1/Access_0 | Extracted Singularity Gate Test 138-C access codes from A2's data core 22766 | -1/Access_0 | Architect warped through subspace 22803 | -1/Access_0 | Found Spectral Analyzer 22811 | -1/Access_0 | Architect warped through subspace 22842 | -1/Access_0 | Started Test 138-B, establishing a local singularity 22842 | -1/Access_0 | Singularity Gate disabled 22885 | -1/Access_0 | Subspace Access Node disabled 22908 | -1/Access_0 | Destroyed Architect 22909 | -1/Access_0 | Extracted unknown sensor trigger ID from Architect's data core 22911 | -1/Access_0 | Found Hpw. Transdimensional Reconstructor 22925 | -1/Access_0 | Found Zero-point Reactor 22961 | -1/Access_0 | Lost 6 parts (1p1n3u1w) 23039 | -1/Access_0 | A4 warped into view 23061 | -1/Access_0 | Destroyed A4 23199 | -1/Access_0 | Found Exp. Focal Shield 23238 | -1/Access_0 | Found Sigix Corpse 23348 | -1/Access_0 | A3 warped into view 23373 | -1/Access_0 | Core integrity fell below 20% 23378 | -1/Access_0 | Destroyed A3 23380 | -1/Access_0 | Found Prototype Ballistic Gun 23381 | -1/Access_0 | Identified A3's Sniper Rifle 23384 | -1/Access_0 | Found Prototype Device 23385 | -1/Access_0 | Identified ST Field Compressor 23484 | -1/Access_0 | Found Exp. Powered Armor 23529 | -1/Access_0 | Found Integrated Dissipator 23529 | -1/Access_0 | Installed Integrated Dissipator, increased core heat dissipation (+20) 23754 | -1/Access_0 | Warped through subspace to slip node 23754 | -1/Access_0 | Discovered new exit (range 8) 23758 | *** | Establishing 0b11! Last Messages --------------- >>Record "Log L.JSI57FRK" [REDACTED] >>Record "Log L.OZLVE4D5" [REDACTED] >>Record "Log L.QL67S5A3" [REDACTED] >>Record "Log L.RSL58V7F" [REDACTED] >>Record "Log L.UHGC2ASH" Despite Warlord's aggressive stance, the Derelict army has been surprisingly slow to make its move. They're doing almost too much planning and preparation... >>Record "Log L.XLJZXWC5" [REDACTED] >>Record "Log L.Y1U23ASU" [REDACTED] 23754_ Warped through subspace, drawn to slip node. 23754_ EXIT=FOUND Map ----- +----------------------------------------------------+ | | | | | | | | | | | | | | | | | | | | | | | | | | | | | | | | | ?????????????????????????????????????????????????? | | ?????????????????????????????????????????????????? | | ?????????????????????????????????????????????????? | | ?????????????????????????????????????????????????? | | ?????????????????????????????????????????????????? | | ?????????????????????????????????????????????????? | | ????????????????????????###??????????????????????? | | ???????????????????????## ##?????????????????????? | | ???????????????????????# #?????????????????????? | | ???????????????????????# @ #?????????????????????? | | ??????????????????????## #?????????????????????? | | ??????????????????????# #?????????????????????? | | ??????????????????????# ##?????????????????????? | | ??????????????????????## #?????????????????????? | | ??????????????????????# #?????????????????????? | | ??????????????????????# ##?????????????????????? | | ??????????????????????# < #?????????????????????? | | ??????????????????????# ##?????????????????????? | | ??????????????????????## #??????????????????????? | | ???????????????????????####??????????????????????? | | ?????????????????????????????????????????????????? | | ?????????????????????????????????????????????????? | | ?????????????????????????????????????????????????? | | ?????????????????????????????????????????????????? | | ?????????????????????????????????????????????????? | | ?????????????????????????????????????????????????? | | ?????????????????????????????????????????????????? | | ?????????????????????????????????????????????????? | | ?????????????????????????????????????????????????? | | ?????????????????????????????????????????????????? | | ?????????????????????????????????????????????????? | | ?????????????????????????????????????????????????? | | ?????????????????????????????????????????????????? | | ?????????????????????????????????????????????????? | +----------------------------------------------------+ Best States ------------- Heat Dissipation 88 Energy Generation 99 Energy Capacity 2700 Matter Stores 300 Matter Capacity 300 Sight Range 24 Robot Scan Range 20 Terrain Scan Density 10 Jamming Range 14 Cloak Strength 9 Additional Mass Support 25 Corruption Block 17 Armor Coverage 600 Resistance: KI 30 Resistance: TH 75 Resistance: EM 15 Core Shielding 90 Propulsion Shielding 66 Point Defense Rating 480 Melee Speed Boost 50 Phase Shifting 25 Evasion (%) 101 Targeting Accuracy 30 Melee Accuracy 24 Target Analysis 10 Core Analysis 12 Armor Integrity Analysis 50 Recoil Reduction 3 Force Boost 50 Salvage Targeting 5 Offensive Hacking 50 Authchip Count 1 Item Schematics ----------------- Assault Drone Bay | -4/Zhirov | Free Exp. Heat Sink | -4/Zhirov | Free Exp. Optical Array | -4/Zhirov | Free Imp. Arc Thrower | -4/Zhirov | Free Exp. Myomer Leg | -2/Protoforge | Archive Imp. Q-thruster | -2/Protoforge | Archive Adv. Plasma Rifle | -2/Protoforge | Archive Exp. Coolant Injector | -2/Protoforge | Archive Exp. Thermal Defense Suite | -2/Protoforge | Archive Centrium Heavy Armor Plating | -2/Protoforge | Archive Cld. Linear Gravjet | -2/Protoforge | Archive Imp. Quantum Reactor | -2/Protoforge | Archive Hds. Centrium Leg | -2/Protoforge | Archive Cld. Gravmag System | -2/Protoforge | Archive Adv. KE Penetrator | -2/Protoforge | Archive Nanosword | -2/Protoforge | Archive Exp. Terrain Scanner | -2/Protoforge | Archive Hvy. Neutron Cannon | -2/Protoforge | Archive Hvy. Dispersion Rifle | -2/Protoforge | Archive Exp. Shock Absorption System | -2/Protoforge | Archive Hvy. Gatling Laser | -2/Protoforge | Archive Robot Schematics ------------------ A-15 Conveyor | -2/Protoforge | Archive G-73 Enforcer | -2/Protoforge | Archive T-07 Excavator | -2/Protoforge | Archive A-02 Transporter | -2/Protoforge | Archive Fabricated ------------ B-74 Champion | x3 | -2/Protoforge | Preloaded Repaired ---------- Autogun | 7% | -9/Materials Autogun | 57% | -9/Materials Med. Armor Plating | 35% | -9/Materials Autogun | 41% | -9/Materials Autogun | 57% | -9/Materials Med. Armor Plating | 25% | -9/Storage Med. Armor Plating | 37% | -9/Storage Imp. Flight Unit | 45% | -5/Factory Studied --------- Lgt. Treads | -9/Materials | Hacked Autogun | -9/Materials | Hacked Rocket Launcher | -9/Materials | Hacked VTOL Module | -9/Materials | Hacked Neutrino Core | -5/Factory | Hacked Impulse Thruster | -4/Factory | Hacked Mic. Antimatter Reactor | -3/Testing | Hacked Impulse Thruster Array | -3/Testing | Hacked Mic. Nuclear Core | -3/Testing | Hacked Field Propulsion Array | -2/Research | Hacked Enh. Nova Cannon | -2/Protoforge | Hacked Alien Tech Used ----------------- Integrated Reactor Sigix Broadsword Subatomic Replicator Transdimensional Reconstructor Integrated Mediator Core Expander Integrated Dissipator High-powered Transdimensional Reconstructor Achievements -------------- Drive-By Friends Forever Challenges ------------ None Game ------ Seed SwordLaunchHammerchucker Manual? 0 Play Time 05:28:35 Cumulative 401.1 hours Start 2025.11.09 @ 15:40:34 End 2025.11.09 @ 22:29:26 Sessions 1 Manual Loads 0 Difficulty Rogue Special Mode None Game No. 163 Rogue 163 Adventurer 0 Explorer 0 Win Type 1 Total 29 Types 2/3/13/0/0/1/8/0/1/1 Lore% 83 Gallery% 72 Achievement% 64 Wizard Run 0 Options --------- Layout 1 ASCII 0 Keyboard 0 Movement Arrows Keybinds 0 Fullscreen 2 Font 24/Terminus Map View 50x35 Zoom Use 0% Tactical HUD 1 Map Filters NONE Filters NONE Steam 1 RUN: c758fd71-0691-4df1-81e5-3de49772103d